Workbook

Sheet Instructions
B2: Highway Safety Manual 1st Edition, Volume 2, Chapter 10 -- Predictive Method for Rural Two-Lane, Two-Way Roads -- Analysis Spreadsheet Summary
B4: Overview | K4: Color Coding in the Worksheets
B6: This spreadsheet has been developed to demonstrate the predictive models | K6: The worksheets include three specific color options to help users
B7: for rural two-lane highways as contained in the new Highway Safety Manual. | K7: identify locations where input data is required. In some cases,
B8: The content was developed for training purposes and all users should | K8: the shaded cells require the user to input specific numbers. In
B9: verify that the answers they obtain with these worksheets correctly | K9: other cases the input is restricted to a select set of options
B10: represent their target analysis. | K10: included in pull-down lists. The respective color coding is as
K11: follows:
B13: The page tabs shown at the bottom of this file represent the various analyses | K13: Color Used | M13: Type of Information Required from User
B14: that can be performed using this spreadsheet tool and the HSM predictive
B15: methods. A user can evaluate an individual road segment or intersection as | M15: Required input information as identified
B16: well as analyze multiple road segments and intersections. If more than one | M16: in the HSM.
B17: segment type requires analysis, the user should create a blank worksheet
B18: and then copy the contents of the segment worksheet into the blank | M18: Input data required from the user but
B19: sheet and name the worksheet accordingly. | M19: restricted to options provided in pull-down
M20: boxes.
B22: The current contents of this spreadsheet include the following: | M22: Optional input information that can be used
M23: to supplement the analysis if this information
B24: Worksheet Name | E24: Contents | M24: is available. This optional input information
M25: is reserved for locally-derived crash information.
B26: Instructions | E26: Current worksheet displaying overview, summary | M26: If the analyst elects to use this option so as
E27: of spreadsheet worksheets, and description of | M27: to improve analysis for local crash distribution
E28: color coding included in the worksheets. | M28: trends, each of the Exhibits with the locally-
M29: derived input also includes a pull-down box
B30: Segment 1 | E30: Analysis for the rural 2-lane segments that | M30: where the analyst should indicate they are
E31: uses lookup tables from exhibits included | M31: using locally derive crash information. The
E32: in the worksheet "Segment Tables." The | M32: worksheets will then use the local values
E33: associated HSM worksheets are 1A, 1B, 1C, | M33: instead of the HSM default values.
E34: 1D, and 1E.
B36: Segment 2 | E36: Duplicate segment worksheet for additional
E37: highway segments.
K38: Spreadsheet developed by:
B39: Segment Tables | E39: Includes segment tables used for analysis of HSM- | L39: Karen Dixon, Ph.D., P.E.
E40: provided crash trends as well as locally-derived crash | L40: Oregon State University
E41: information. These are HSM Tables 10-3, 10-4, | L41: School of Civil & Construction Engineering
E42: and 10-12. This worksheet also includes tables | L42: 220 Owen Hall
E43: used for CMF calculations. These tables | L43: Corvallis, OR 97330
E44: include Table 10-8, 10-9, and 10-10.
L45: Email: karen.dixon@oregonstate.edu
B46: Intersection 1 | E46: Analysis for the rural 2-lane intersections that | L46: Phone: 541-737-6337
E47: uses lookup tables from exhibits included
E48: in the worksheet "Intersection Tables." The
E49: associated HSM worksheets are 2A, 2B, 2C,
E50: 2D, and 2E.
B52: Intersection 2 | E52: Duplicate intersection worksheet for
E53: additional highway segments.
B55: Intersection Tables | E55: Includes intersection tables used for analysis of HSM-
E56: provided crash trends as well as locally-derived crash
E57: information. These are HSM Tables 10-5, 10-6,
E58: and 10-15. This worksheet also includes tables
E59: used for CMF calculations. These tables
E60: include Tables 10-13 and 10-14.
B62: Rural 2-lane Site Total | E62: Analysis for site-specific EB analysis using
E63: results from the rural 2-lane segment as well as
E64: rural 2-lane intersection worksheets. This
E65: analysis can be performed if the analyst
E66: knows the exact location of historic crashes
E67: within the study limits. The associated
E68: HSM worksheets are 3A and 3B.
B70: Rural 2-lane Project Total | E70: Analysis for project-specific EB analysis using
E71: results from the rural 2-lane segment as well as
E72: rural 2-lane intersection worksheets. This
E73: analysis can be performed if the analyst has
E74: historic crash data, but does not know the
E75: exact location within the project limits at
E76: which the crashes occurred. The associated
E77: HSM worksheets are Worksheets 4A and 4B.
B79: Construction -- Do Not Delete | E79: Data in this worksheet has been used to
E80: help define the pull-down options in the
E81: analysis worksheets. There is no need for a
E82: user to work within this worksheet, but the
E83: worksheet should be retained so that the
E84: other worksheets can continue to use the
E85: options included in this sheet.
B88: FDOT Developed Crash Costs Spreadsheets
B90: The Florida Department of Transportation (FDOT) has expanded the original spreadsheets | L90: Crash Cost Computation Methodology
B91: to estimate crash costs for a designated life cycle. The Npredicted or Nexpected values shown
B92: in the Rural 2-Lane Site Total tab are brought into the Segment Crash Cost and Intersection | L92: Once the previously described data has been entered into the crash cost spreadsheet, the spreadsheet will compute the present value of crash costs for the prescribed life cycle. This computation is done by the spreadsheet as follows. The Default Distribution for Crash Severity Level factors from Chapter 23, Volume 1 of the FDOT Plans Preparation Manual (PPM) have already been entered into the orange cells at the top right of the spreadsheet. These percentages are multiplied by the Npredicted or Nexpected in the spreadsheet. The annual number of crashes is attained for each year of the improvements life cycle. This value increases with increasing future traffic volumes and Npredicted or Nexpected. The annual number of crashes is then multiplied by the FDOT KABCO crash costs found in Table 23.5.2 in Volume 1 of the FDOT PPM. The annualized total crash cost is summed in Column P. This cost is taken to present value or present worth using the equation shown in Note 1 at the bottom of the spreadsheet. The annual present value crash costs are summed at the bottom right of the spreadsheed for the life cycle present value crash costs. It should be noted as future editions of the FDOT PPM are provided, the user should confirm the crash distribution factors and the FDOT KABCO crash costs as these will be periodically updated. The data shown in this spreadsheet is based upon the 2016 edition of the FDOT PPM.
B93: Crash Cost tabs. The user will need to enter basic information into the spreadsheet as described
B94: below. As with the previous spreadsheets, the yellow cells identify locations were data needs to
B95: be entered. The blue cells are pull down menus.
B97: Minor or Major Growth Rate | E97: The Growth Rate is the compunded annual traffic growth rate over
E98: the analysis period. For the Segment Crash Cost spreadsheet it
E99: applies to the segment being analyzed. For the Intersection Crash
E100: Cost spreadsheets it is the compounded annual traffic growth rate
E101: for the major and minor approaches as defined in the Intersection tab.
B103: Rate of Return | E103: Also referred to as interest rate is defined in Chapter 23; Volume 1 of
E104: the FDOT Plans Preparation Manual as 4%.
B106: Project Opening Year | E106: This is the year the project will be completed and open to traffic. The
E107: Project Opening Year AADT will calculated by using the Current Year
E108: AADT applying the growth factor. You will notice the spreadsheet
E109: shifts down to the Project Opening Year for the crash cost analysis.
B111: Analysis Period | E111: This is based upon the improvement's life cycle.
B113: Segment or Intersection | E113: Pull down menu for the user to identify segment or intersection to
E114: match site types shown in the Rural 2-Lane Site Total tab.
B116: Crash Data Used | E116: Pull down menu showing either yes or no. If crash data has been
E117: entered into the "Observed Crash" column of the Rural 2-Lane Site
E118: Total tab, then yes should be the answer and the analysis will be done
E119: using the Nexpected values. If crash date is not used the analysis will be
E120: done using the Npredicted values. After selecting Yes or No, it is
E121: important to click the "Analyze" button. If the user selects "Yes" for
E122: crash data, a pop up will appear asking the user to select
E123: between an existing or proposed conditions analysis. If existing,
E124: nothing further is required. If proposed, the user will see another
E125: pop-up asking the existing conditions Npredicted and Nexpected
E126: crash frequency to be added. This is for the proposed conditions EB
E127: analysis using the ratio method and provides a proposed conditions
E128: Nexpected for the crash cost calculation. EB analysis of a proposed
E129: condition requires data associated with the existing condition
E130: because there is no historical crash data for the proposed condition.

Sheet Segment1
A2: Worksheet 1A -- General Information and Input Data for Rural Two-Lane Two-Way Roadway Segments | AD2: Tables Affiliated with Crash Modification Factors:
A3: General Information | G3: Location Information | Q3: Supplemental CMF Calculations for Shoulders:
A4: Analyst | G4: Roadway
A5: Agency or Company | G5: Roadway Section | AD5: Table 10-8: CMF for Lane Width on Roadway Segments (CMFra)
A6: Date Performed | G6: Jurisdiction | Q6: Calculated Right Shoulder Width (CMFwra) : | U6: =IF($I$10>2000,(VLOOKUP($J$12,$AD$25:$AH$33,5,FALSE)),IF($I$10<400,(VLOOKUP($J$12,$AD$25:$AH$33,3,FALSE)),(VLOOKUP($J$12,$AD$25:$AH$33,4)))) -> 1.1 | W6: Calculated Left Shoulder Width (CMFwra) : | AA6: =IF($I$10>2000,(VLOOKUP($M$12,$AD$25:$AH$33,5,FALSE)),IF($I$10<400,(VLOOKUP($M$12,$AD$25:$AH$33,3,FALSE)),(VLOOKUP($M$12,$AD$25:$AH$33,4)))) -> 1.1
G7: Analysis Year | AD7: Lane Width (ft.) | AF7: AADT (veh/day)
A8: Input Data | G8: Base Conditions | I8: Site Conditions | Q8: Calculated Right Shoulder Type (CMF tra) : | U8: =IF($J$13="Paved",(HLOOKUP($J$12,'Segment Tables'!$S$8:$AA$12,2,FALSE)),(IF($J$13="Gravel",(HLOOKUP($J$12,'Segment Tables'!$S$8:$AA$12,3,FALSE)),(IF($J$13="Turf",(HLOOKUP($J$12,'Segment Tables'!$S$8:$AA$12,5,FALSE)),HLOOKUP($J$12,'Segment Tables'!$S$8:$AA$12,4,FALSE)))))) -> 1 | W8: Calculated Left Shoulder Type (CMF tra) : | AA8: =IF($M$13="Paved",(HLOOKUP($M$12,'Segment Tables'!$S$8:$AA$12,2,FALSE)),(IF($M$13="Gravel",(HLOOKUP($M$12,'Segment Tables'!$S$8:$AA$12,3,FALSE)),(IF($M$13="Turf",(HLOOKUP($M$12,'Segment Tables'!$S$8:$AA$12,5,FALSE)),HLOOKUP($M$12,'Segment Tables'!$S$8:$AA$12,4,FALSE)))))) -> 1 | AF8: < 400 | AG8: 400 to 2000 | AH8: > 2000
A9: Length of segment, L (mi) | G9: -- | AD9: 9 | AF9: 1.05 | AG9: =+($I$10-400)*0.000281+1.05 -> 0.9376 | AH9: 1.5
A10: AADT (veh/day) | D10: AADTMAX = | E10: 17800 | F10: (veh/day) | G10: -- | N10: =IF(I10>E10,"AADT out of range","AADT OK") -> AADT OK | Q10: Computed Right Shoulder CMF2r : | U10: =(+$U$6*$U$8-1)*(IF('Segment Tables'!$D$23="No",(('Segment Tables'!$G$29+'Segment Tables'!$G$34+'Segment Tables'!$G$36)/100),(('Segment Tables'!$K$29+'Segment Tables'!$K$34+'Segment Tables'!$K$36)/100)))+1 -> 1.0574 | W10: Computed Left Shoulder CMF2r : | AA10: =(+$AA$6*$AA$8-1)*(IF('Segment Tables'!$D$23="No",(('Segment Tables'!$G$29+'Segment Tables'!$G$34+'Segment Tables'!$G$36)/100),(('Segment Tables'!$K$29+'Segment Tables'!$K$34+'Segment Tables'!$K$36)/100)))+1 -> 1.0574 | AD10: 9.5 | AF10: =+(AF9+AF11)/2 -> 1.035 | AG10: =+(AG9+AG11)/2 -> 0.9438 | AH10: =+(AH9+AH11)/2 -> 1.4
A11: Lane width (ft.) | G11: 12 | AD11: 10 | AF11: 1.02 | AG11: =+($I$10-400)*0.000175+1.02 -> 0.95 | AH11: 1.3
A12: Shoulder width (ft.) | G12: 6 | I12: Right Shld: | K12: Left Shld: | Q12: Supplemental CMF Calculations for Horizontal Curves: | AD12: 10.5 | AF12: =+(AF11+AF13)/2 -> 1.015 | AG12: =+(AG11+AG13)/2 -> 0.975 | AH12: =+(AH11+AH13)/2 -> 1.175
A13: Shoulder type | G13: Paved | I13: Right Shld: | K13: Left Shld: | AD13: 11 | AF13: 1.01 | AG13: =+($I$10-400)*0.000025+1.01 -> 1 | AH13: 1.05
A14: Length of horizontal curve (mi) | G14: 0 | Q14: Adjusted Curve Radius (if less than 100 ft.): | U14: =IF($I$15>0,IF($I$15<=100,100,$I$15),0) -> 0 | AD14: 11.5 | AF14: =+(AF13+AF15)/2 -> 1.005 | AG14: =+(AG13+AG15)/2 -> 1 | AH14: =+(AH13+AH15)/2 -> 1.025
A15: Radius of curvature (ft.) | G15: 0 | N15: =IF(I14>0,IF(I15=0,"Value of radius must be > 0","Radius Value OK"),"Radius Value OK") -> Radius Value OK | AD15: 12 | AF15: 1 | AG15: 1 | AH15: 1
A16: Spiral transition curve (present/not present) | G16: Not Present | Q16: Adjusted Curve Length (if less than 100 ft.): | U16: =IF($I$14>0,IF($I$14<=100/5280,100/5280,$I$14),0) -> 0 | AD16: Note: The collision types related to lane width to which this CMF applies include single-vehicle run-off-the-road and multiple-vehicle head-on, opposite-direction sideswipe, and same-direction sideswipe crashes.
A17: Superelevation variance (ft./ft.) | G17: < 0.01
A18: Grade (%) | G18: 0 | Q18: Numeric Value for S: | U18: =IF(I16="Present",1,IF(I16="Not Present",0,0.5)) -> 0.5
A19: Driveway density (driveways/mile) | G19: 5
A20: Centerline rumble strips (present/not present) | G20: Not Present | Q20: Calculated Horizontal Curve CMF: | U20: =IF( $U$16>0, ((1.55*$U$16)+(80.2/$U$14)-(0.012*(IF($U$18="Present",TRUE,FALSE))))/(1.55*$U$16), 1) -> 1
A21: Passing lanes [present (1 lane) /present (2 lane) / not present)] | G21: Not Present | AD21: Table 10-9: CMF for Shoulder Width on Roadway Segments (CMFwra)
A22: Two-way left-turn lane (present/not present) | G22: Not Present | Q22: Adjusted Horizontal Curve CMF: | U22: =IF($U$20<1,1,$U$20) -> 1
A23: Roadside hazard rating (1-7 scale) | G23: 3 | AD23: Shoulder Width (ft.) | AF23: AADT (veh/day)
A24: Segment lighting (present/not present) | G24: Not Present | AF24: < 400 | AG24: 400 to 2000 | AH24: > 2000
A25: Auto speed enforcement (present/not present) | G25: Not Present | AD25: 0 | AF25: 1.1 | AG25: =+($I$10-400)*0.00025+1.1 -> 1 | AH25: 1.5
A26: Calibration Factor, Cr | G26: 1 | AD26: 1 | AF26: =+(AF25+AF27)/2 -> 1.085 | AG26: =+(AG25+AG27)/2 -> 1.0064 | AH26: =+(AH25+AH27)/2 -> 1.4
AD27: 2 | AF27: 1.07 | AG27: =+($I$10-400)*0.000143+1.07 -> 1.0128 | AH27: 1.3
AD28: 3 | AF28: =+(AF27+AF29)/2 -> 1.045 | AG28: =+(AG27+AG29)/2 -> 1.00015 | AH28: =+(AH27+AH29)/2 -> 1.225
AD29: 4 | AF29: 1.02 | AG29: =+($I$10-400)*0.00008125+1.02 -> 0.9875 | AH29: 1.15
A30: Worksheet 1B -- Crash Modification Factors for Rural Two-Lane Two-Way Roadway Segments | AD30: 5 | AF30: =+(AF29+AF31)/2 -> 1.01 | AG30: =+(AG29+AG31)/2 -> 0.99375 | AH30: =+(AH29+AH31)/2 -> 1.075
A31: (1) | B31: (2) | C31: (3) | D31: (4) | E31: (5) | F31: (6) | G31: (7) | H31: (8) | I31: (9) | J31: (10) | K31: (11) | L31: (12) | M31: (13) | AD31: 6 | AF31: 1 | AG31: 1 | AH31: 1
A32: CMF for Lane Width | B32: CMF for Shoulder Width and Type | C32: CMF for Horizontal Curves | D32: CMF for Super-elevation | E32: CMF for Grades | F32: CMF for Driveway Density | G32: CMF for Centerline Rumble Strips | H32: CMF for Passing Lanes | I32: CMF for Two-Way Left-Turn Lane | J32: CMF for Roadside Design | K32: CMF for Lighting | L32: CMF for Automated Speed Enforcement | M32: Combined CMF | AD32: 7 | AF32: =+(AF31+AF33)/2 -> 0.99 | AG32: =+(AG31+AG33)/2 -> 1.00375 | AH32: =+(AH31+AH33)/2 -> 0.935
AD33: 8 | AF33: 0.98 | AG33: =+(($I$10-400)*-0.00006875)+0.98 -> 1.0075 | AH33: 0.87
AD34: Note: The collision types related to shoulder width to which this CMF applies include single-vehicle run-off-the-road and multiple-vehicle head-on, opposite-direction sideswipe, and same-direction sideswipe crashes.
A36: CMF 1r | B36: CMF 2r | C36: CMF 3r | D36: CMF 4r | E36: CMR 5r | F36: CMF 6r | G36: CMF 7r | H36: CMF 8r | I36: CMF 9r | J36: CMF 10r | K36: CMF 11r | L36: CMF 12r | M36: CMF comb
A37: from Equation 10-11 | B37: from Equation 10-12 | C37: from Equation 10-13 | D37: from Equations 10-14, 10-15, or 10-16 | E37: from Table 10-11 | F37: from Equation 10-17 | G37: from Section 10.7.1 | H37: from Section 10.7.1 | I37: from Equation 10-18 & 10-19 | J37: from Equation 10-20 | K37: from Equation 10-21 | L37: from Section 10.7.1 | M37: (1)x(2)x … x(11)x(12)
A41: =((IF($I$10>2000,(VLOOKUP($I$11,$AD$9:$AH$15,5,FALSE)),IF($I$10<400,(VLOOKUP($I$11,$AD$9:$AH$15,3,FALSE)),(VLOOKUP($I$11,$AD$9:$AH$15,4)))))-1)*(IF( 'Segment Tables'!D23="No", (('Segment Tables'!$G$29+'Segment Tables'!$G$34+'Segment Tables'!$G$36)/100),(('Segment Tables'!$K$29+'Segment Tables'!$K$34+'Segment Tables'!$K$36)/100)))+1 ->  | B41: =($U$10+$AA$10)/2 -> 1.0574 | C41: =+U22 -> 1 | D41: =IF($I$17>=0.02,(1.06+3*($I$17-0.02)),IF($I$17<0.01,1,(1+6*($I$17-0.01)))) -> 1 | E41: =IF($I$18>6,1.16,(IF($I$18<=3,1,1.1))) -> 1 | F41: =IF($I$19>5,(0.322+$I$19*(0.05-0.005*LN($I$10)))/(0.322+5*(0.05-0.005*LN($I$10))),1) -> 1 | G41: =IF(I22="Present",1,IF($I$20="Present",0.94,1)) -> 1 | H41: =IF($I$21="Present (1 lane)",0.75,IF($I$21="Present (2 lanes)", 0.65, 1)) -> 1 | I41: =IF($I$22="Not Present",1,IF($I$19<=5,1,(1-(0.7*0.5*((0.0047*$I$19)+($I$19*$I$19*0.0024))/(1.199+(0.0047*$I$19)+(0.0024*$I$19*$I$19)))))) -> 1 | J41: =EXP($I$23*0.0668-0.6869)/EXP(-0.4865) -> 0.8184033263 | K41: =IF($I$24="Present",(1-((1-(0.72*IF('Segment Tables'!$E$45="No",'Segment Tables'!$C$49,'Segment Tables'!$I$49))-(0.83*IF('Segment Tables'!$E$45="No",'Segment Tables'!$E$49,'Segment Tables'!$K$49)))*IF('Segment Tables'!$E$45="No",'Segment Tables'!$F$49,'Segment Tables'!$L$49))),1) -> 1 | L41: =IF($I$25="Present",0.93,1) -> 1 | M41: =+A41*B41*C41*D41*E41*F41*G41*H41*I41*J41*K41*L41 -> 
A45: Worksheet 1C -- Roadway Segment Crashes for Rural Two-Lane Two-Way Roadway Segments
A46: (1) | C46: (2) | D46: (3) | F46: (4) | H46: (5) | J46: (6) | K46: (7) | L46: (8)
A47: Crash Severity Level | C47: N spf rs | D47: Overdispersion Parameter, k | F47: Crash Severity Distribution | H47: N spf rs by Severity Distribution | J47: Combined CMFs | K47: Calibration Factor, Cr | L47: Predicted average crash frequency, N predicted rs (crashes/year)
C48: from Equation 10-6 | D48: from Equation 10-7 | F48: from Table 10-3 (proportion) | H48: (2)TOTAL x (4) | J48: (13) from Worksheet 1B | L48: (5)x(6)x(7)
A49: Total | C49: =+I10*I9*365*0.000001*EXP(-0.312) -> 0 | D49: =0.236/I9 ->  | F49: =+'Segment Tables'!E15/100 -> 1 | H49: =+C49*F49 -> 0 | J49: =+M41 ->  | K49: =+$I$26 -> 0 | L49: =+H49*J49*K49 -> 
A50: Fatal and Injury (FI) | C50: -- | D50: -- | F50: =+IF('Segment Tables'!$D$8="No",('Segment Tables'!$E$13/100),('Segment Tables'!$H$13/100)) -> 0.321 | H50: =+C49*F50 -> 0 | J50: =+M41 ->  | K50: =+$I$26 -> 0 | L50: =+H50*J50*K50 -> 
A51: Property Damage Only (PDO) | C51: -- | D51: -- | F51: =+IF('Segment Tables'!$D$8="No",('Segment Tables'!$E$14/100),('Segment Tables'!$H$14/100)) -> 0.679 | H51: =+C49*F51 -> 0 | J51: =+M41 ->  | K51: =+$I$26 -> 0 | L51: =+H51*J51*K51 -> 
A55: Worksheet 1D -- Crashes by Severity Level and Collision Type for Rural Two-Lane Two-Way Roadway Segments
A56: (1) | C56: (2) | D56: (3) | F56: (4) | H56: (5) | J56: (6) | L56: (7)
A57: Collision Type | C57: Proportion of Collision Type(TOTAL) | D57: N predicted rs (TOTAL) (crashes/year) | F57: Proportion of Collision Type(FI) | H57: N predicted rs (FI) (crashes/year) | J57: Proportion of Collision Type(PDO) | L57: N predicted rs (PDO) (crashes/year)
C58: from Table 10-4 | D58: (8)TOTAL from Worksheet 1C | F58: from Table 10-4 | H58: (8)FI from Worksheet 1C | J58: from Table 10-4 | L58: (8)PDO from Worksheet 1C
A59: Total | C59: =+C68+C75 -> 1 | D59: =+$L$49 ->  | F59: =+F68+F75 -> 1 | H59: =+$L$50 ->  | J59: 1 | L59: =+$L$51 -> 
D60: (2)x(3)TOTAL | H60: (4)x(5)FI | L60: (6)x(7)PDO
A61: SINGLE-VEHICLE
A62: Collision with animal | C62: =IF('Segment Tables'!$D$23="No",('Segment Tables'!$G25/100),('Segment Tables'!$K25/100)) -> 0.121 | D62: =+$L$49*C62 ->  | F62: =IF('Segment Tables'!$D$23="No",'Segment Tables'!$E25/100,'Segment Tables'!$I25/100) -> 0.038 | H62: =+$L$50*F62 ->  | J62: =IF('Segment Tables'!$D$23="No",'Segment Tables'!$F25/100,'Segment Tables'!$J25/100) -> 0.184 | L62: =+$L$51*J62 -> 
A63: Collision with bicycle | C63: =IF('Segment Tables'!$D$23="No",('Segment Tables'!$G26/100),('Segment Tables'!$K26/100)) -> 0.002 | D63: =+$L$49*C63 ->  | F63: =IF('Segment Tables'!$D$23="No",'Segment Tables'!$E26/100,'Segment Tables'!$I26/100) -> 0.004 | H63: =+$L$50*F63 ->  | J63: =IF('Segment Tables'!$D$23="No",'Segment Tables'!$F26/100,'Segment Tables'!$J26/100) -> 0.001 | L63: =+$L$51*J63 -> 
A64: Collision with pedestrian | C64: =IF('Segment Tables'!$D$23="No",('Segment Tables'!$G27/100),('Segment Tables'!$K27/100)) -> 0.003 | F64: =IF('Segment Tables'!$D$23="No",'Segment Tables'!$E27/100,'Segment Tables'!$I27/100) -> 0.007 | J64: =IF('Segment Tables'!$D$23="No",'Segment Tables'!$F27/100,'Segment Tables'!$J27/100) -> 0.001
A65: Overturned | C65: =IF('Segment Tables'!$D$23="No",('Segment Tables'!$G28/100),('Segment Tables'!$K28/100)) -> 0.025 | F65: =IF('Segment Tables'!$D$23="No",'Segment Tables'!$E28/100,'Segment Tables'!$I28/100) -> 0.037 | J65: =IF('Segment Tables'!$D$23="No",'Segment Tables'!$F28/100,'Segment Tables'!$J28/100) -> 0.015
A66: Ran off road | C66: =IF('Segment Tables'!$D$23="No",('Segment Tables'!$G29/100),('Segment Tables'!$K29/100)) -> 0.521 | F66: =IF('Segment Tables'!$D$23="No",'Segment Tables'!$E29/100,'Segment Tables'!$I29/100) -> 0.545 | J66: =IF('Segment Tables'!$D$23="No",'Segment Tables'!$F29/100,'Segment Tables'!$J29/100) -> 0.505
A67: Other single-vehicle collision | C67: =IF('Segment Tables'!$D$23="No",('Segment Tables'!$G30/100),('Segment Tables'!$K30/100)) -> 0.021 | F67: =IF('Segment Tables'!$D$23="No",'Segment Tables'!$E30/100,'Segment Tables'!$I30/100) -> 0.007 | J67: =IF('Segment Tables'!$D$23="No",'Segment Tables'!$F30/100,'Segment Tables'!$J30/100) -> 0.029
A68: Total single-vehicle crashes | C68: =+SUM(C62:C67) -> 0.693 | F68: =SUM(F62:G67) -> 0.638 | J68: =SUM(J62:K67) -> 0.735
A69: MULTIPLE-VEHICLE
A70: Angle collision | C70: =IF('Segment Tables'!$D$23="No",('Segment Tables'!$G33/100),('Segment Tables'!$K33/100)) -> 0.085 | D70: =+$L$49*C70 ->  | F70: =IF('Segment Tables'!$D$23="No",'Segment Tables'!$E33/100,'Segment Tables'!$I33/100) -> 0.1 | H70: =+$L$50*F70 ->  | J70: =IF('Segment Tables'!$D$23="No",'Segment Tables'!$F33/100,'Segment Tables'!$J33/100) -> 0.072 | L70: =+$L$51*J70 -> 
A71: Head-on collision | C71: =IF('Segment Tables'!$D$23="No",('Segment Tables'!$G34/100),('Segment Tables'!$K34/100)) -> 0.016 | F71: =IF('Segment Tables'!$D$23="No",'Segment Tables'!$E34/100,'Segment Tables'!$I34/100) -> 0.034 | J71: =IF('Segment Tables'!$D$23="No",'Segment Tables'!$F34/100,'Segment Tables'!$J34/100) -> 0.003 | L71: =+$L$51*J71 -> 
A72: Rear-end collision | C72: =IF('Segment Tables'!$D$23="No",('Segment Tables'!$G35/100),('Segment Tables'!$K35/100)) -> 0.142 | F72: =IF('Segment Tables'!$D$23="No",'Segment Tables'!$E35/100,'Segment Tables'!$I35/100) -> 0.164 | J72: =IF('Segment Tables'!$D$23="No",'Segment Tables'!$F35/100,'Segment Tables'!$J35/100) -> 0.122 | L72: =+$L$51*J72 -> 
A73: Sideswipe collision | C73: =IF('Segment Tables'!$D$23="No",('Segment Tables'!$G36/100),('Segment Tables'!$K36/100)) -> 0.037 | F73: =IF('Segment Tables'!$D$23="No",'Segment Tables'!$E36/100,'Segment Tables'!$I36/100) -> 0.038 | J73: =IF('Segment Tables'!$D$23="No",'Segment Tables'!$F36/100,'Segment Tables'!$J36/100) -> 0.038 | L73: =+$L$51*J73 -> 
A74: Other multiple-vehicle collision | C74: =IF('Segment Tables'!$D$23="No",('Segment Tables'!$G37/100),('Segment Tables'!$K37/100)) -> 0.027 | F74: =IF('Segment Tables'!$D$23="No",'Segment Tables'!$E37/100,'Segment Tables'!$I37/100) -> 0.026 | J74: =IF('Segment Tables'!$D$23="No",'Segment Tables'!$F37/100,'Segment Tables'!$J37/100) -> 0.03 | L74: =+$L$51*J74 -> 
A75: Total multiple-vehicle crashes | C75: =SUM(C70:C74) -> 0.307 | F75: =SUM(F70:F74) -> 0.362 | J75: =SUM(J70:J74) -> 0.265 | L75: =SUM(L70:L74) -> 
A79: Worksheet 1E -- Summary Results for Rural Two-Lane Two-Way Roadway Segments
A80: (1) | D80: (2) | G80: (3) | J80: (4) | L80: (5)
A81: Crash severity level | D81: Crash Severity Distribution (proportion) | G81: Predicted average crash frequency (crashes/year) | J81: Roadway segment length (mi) | L81: Crash rate (crashes/mi/year)
D82: (4) from Worksheet 1C | G82: (8) from Worksheet 1C | L82: (3)/(4)
A83: Total | D83: =+F49 -> 1 | G83: =+L49 ->  | J83: =+$I$9 -> 0 | L83: =+G83/J83 -> 
A84: Fatal and Injury (FI) | D84: =+F50 -> 0.321 | G84: =+L50 ->  | J84: =+$I$9 -> 0 | L84: =+G84/J84 -> 
A85: Property Damage Only (PDO) | D85: =+F51 -> 0.679 | G85: =+L51 ->  | J85: =+$I$9 -> 0 | L85: =+G85/J85 -> 

Sheet Segment2
A2: Worksheet 1A -- General Information and Input Data for Rural Two-Lane Two-Way Roadway Segments | AD2: Tables Affiliated with Crash Modification Factors:
A3: General Information | G3: Location Information | Q3: Supplemental CMF Calculations for Shoulders:
A4: Analyst | G4: Roadway
A5: Agency or Company | G5: Roadway Section | AD5: Table 10-8: CMF for Lane Width on Roadway Segments (CMFra)
A6: Date Performed | G6: Jurisdiction | Q6: Calculated Right Shoulder Width (CMFwra) : | U6: =IF($I$10>2000,(VLOOKUP($J$12,$AD$25:$AH$33,5,FALSE)),IF($I$10<400,(VLOOKUP($J$12,$AD$25:$AH$33,3,FALSE)),(VLOOKUP($J$12,$AD$25:$AH$33,4)))) -> 1.1 | W6: Calculated Left Shoulder Width (CMFwra) : | AA6: =IF($I$10>2000,(VLOOKUP($M$12,$AD$25:$AH$33,5,FALSE)),IF($I$10<400,(VLOOKUP($M$12,$AD$25:$AH$33,3,FALSE)),(VLOOKUP($M$12,$AD$25:$AH$33,4)))) -> 1.1
G7: Analysis Year | AD7: Lane Width (ft.) | AF7: AADT (veh/day)
A8: Input Data | G8: Base Conditions | I8: Site Conditions | Q8: Calculated Right Shoulder Type (CMF tra) : | U8: =IF($J$13="Paved",(HLOOKUP($J$12,'Segment Tables'!$S$8:$AA$12,2,FALSE)),(IF($J$13="Gravel",(HLOOKUP($J$12,'Segment Tables'!$S$8:$AA$12,3,FALSE)),(IF($J$13="Turf",(HLOOKUP($J$12,'Segment Tables'!$S$8:$AA$12,5,FALSE)),HLOOKUP($J$12,'Segment Tables'!$S$8:$AA$12,4,FALSE)))))) -> 1 | W8: Calculated Left Shoulder Type (CMF tra) : | AA8: =IF($M$13="Paved",(HLOOKUP($M$12,'Segment Tables'!$S$8:$AA$12,2,FALSE)),(IF($M$13="Gravel",(HLOOKUP($M$12,'Segment Tables'!$S$8:$AA$12,3,FALSE)),(IF($M$13="Turf",(HLOOKUP($M$12,'Segment Tables'!$S$8:$AA$12,5,FALSE)),HLOOKUP($M$12,'Segment Tables'!$S$8:$AA$12,4,FALSE)))))) -> 1 | AF8: < 400 | AG8: 400 to 2000 | AH8: > 2000
A9: Length of segment, L (mi) | G9: -- | AD9: 9 | AF9: 1.05 | AG9: =+($I$10-400)*0.000281+1.05 -> 0.9376 | AH9: 1.5
A10: AADT (veh/day) | D10: AADTMAX = | E10: 17800 | F10: (veh/day) | G10: -- | N10: =IF(I10>E10,"AADT out of range","AADT OK") -> AADT OK | Q10: Computed Right Shoulder CMF2r : | U10: =(+$U$6*$U$8-1)*(IF('Segment Tables'!$D$23="No",(('Segment Tables'!$G$29+'Segment Tables'!$G$34+'Segment Tables'!$G$36)/100),(('Segment Tables'!$K$29+'Segment Tables'!$K$34+'Segment Tables'!$K$36)/100)))+1 -> 1.0574 | W10: Computed Left Shoulder CMF2r : | AA10: =(+$AA$6*$AA$8-1)*(IF('Segment Tables'!$D$23="No",(('Segment Tables'!$G$29+'Segment Tables'!$G$34+'Segment Tables'!$G$36)/100),(('Segment Tables'!$K$29+'Segment Tables'!$K$34+'Segment Tables'!$K$36)/100)))+1 -> 1.0574 | AD10: 9.5 | AF10: =+(AF9+AF11)/2 -> 1.035 | AG10: =+(AG9+AG11)/2 -> 0.9438 | AH10: =+(AH9+AH11)/2 -> 1.4
A11: Lane width (ft.) | G11: 12 | AD11: 10 | AF11: 1.02 | AG11: =+($I$10-400)*0.000175+1.02 -> 0.95 | AH11: 1.3
A12: Shoulder width (ft.) | G12: 6 | I12: Right Shld: | K12: Left Shld: | Q12: Supplemental CMF Calculations for Horizontal Curves: | AD12: 10.5 | AF12: =+(AF11+AF13)/2 -> 1.015 | AG12: =+(AG11+AG13)/2 -> 0.975 | AH12: =+(AH11+AH13)/2 -> 1.175
A13: Shoulder type | G13: Paved | I13: Right Shld: | K13: Left Shld: | AD13: 11 | AF13: 1.01 | AG13: =+($I$10-400)*0.000025+1.01 -> 1 | AH13: 1.05
A14: Length of horizontal curve (mi) | G14: 0 | Q14: Adjusted Curve Radius (if less than 100 ft.): | U14: =IF($I$15>0,IF($I$15<=100,100,$I$15),0) -> 0 | AD14: 11.5 | AF14: =+(AF13+AF15)/2 -> 1.005 | AG14: =+(AG13+AG15)/2 -> 1 | AH14: =+(AH13+AH15)/2 -> 1.025
A15: Radius of curvature (ft.) | G15: 0 | N15: =IF(I14>0,IF(I15=0,"Value of radius must be > 0","Radius Value OK"),"Radius Value OK") -> Radius Value OK | AD15: 12 | AF15: 1 | AG15: 1 | AH15: 1
A16: Spiral transition curve (present/not present) | G16: Not Present | Q16: Adjusted Curve Length (if less than 100 ft.): | U16: =IF($I$14>0,IF($I$14<=100/5280,100/5280,$I$14),0) -> 0 | AD16: Note: The collision types related to lane width to which this CMF applies include single-vehicle run-off-the-road and multiple-vehicle head-on, opposite-direction sideswipe, and same-direction sideswipe crashes.
A17: Superelevation variance (ft./ft.) | G17: < 0.01
A18: Grade (%) | G18: 0 | Q18: Numeric Value for S: | U18: =IF(I16="Present",1,IF(I16="Not Present",0,0.5)) -> 0.5
A19: Driveway density (driveways/mile) | G19: 5
A20: Centerline rumble strips (present/not present) | G20: Not Present | Q20: Calculated Horizontal Curve CMF: | U20: =IF( $U$16>0, ((1.55*$U$16)+(80.2/$U$14)-(0.012*(IF($U$18="Present",TRUE,FALSE))))/(1.55*$U$16), 1) -> 1
A21: Passing lanes [present (1 lane) /present (2 lane) / not present)] | G21: Not Present | AD21: Table 10-9: CMF for Shoulder Width on Roadway Segments (CMFwra)
A22: Two-way left-turn lane (present/not present) | G22: Not Present | Q22: Adjusted Horizontal Curve CMF: | U22: =IF($U$20<1,1,$U$20) -> 1
A23: Roadside hazard rating (1-7 scale) | G23: 3 | AD23: Shoulder Width (ft.) | AF23: AADT (veh/day)
A24: Segment lighting (present/not present) | G24: Not Present | AF24: < 400 | AG24: 400 to 2000 | AH24: > 2000
A25: Auto speed enforcement (present/not present) | G25: Not Present | AD25: 0 | AF25: 1.1 | AG25: =+($I$10-400)*0.00025+1.1 -> 1 | AH25: 1.5
A26: Calibration Factor, Cr | G26: 1 | AD26: 1 | AF26: =+(AF25+AF27)/2 -> 1.085 | AG26: =+(AG25+AG27)/2 -> 1.0064 | AH26: =+(AH25+AH27)/2 -> 1.4
AD27: 2 | AF27: 1.07 | AG27: =+($I$10-400)*0.000143+1.07 -> 1.0128 | AH27: 1.3
AD28: 3 | AF28: =+(AF27+AF29)/2 -> 1.045 | AG28: =+(AG27+AG29)/2 -> 1.00015 | AH28: =+(AH27+AH29)/2 -> 1.225
AD29: 4 | AF29: 1.02 | AG29: =+($I$10-400)*0.00008125+1.02 -> 0.9875 | AH29: 1.15
A30: Worksheet 1B -- Crash Modification Factors for Rural Two-Lane Two-Way Roadway Segments | AD30: 5 | AF30: =+(AF29+AF31)/2 -> 1.01 | AG30: =+(AG29+AG31)/2 -> 0.99375 | AH30: =+(AH29+AH31)/2 -> 1.075
A31: (1) | B31: (2) | C31: (3) | D31: (4) | E31: (5) | F31: (6) | G31: (7) | H31: (8) | I31: (9) | J31: (10) | K31: (11) | L31: (12) | M31: (13) | AD31: 6 | AF31: 1 | AG31: 1 | AH31: 1
A32: CMF for Lane Width | B32: CMF for Shoulder Width and Type | C32: CMF for Horizontal Curves | D32: CMF for Super-elevation | E32: CMF for Grades | F32: CMF for Driveway Density | G32: CMF for Centerline Rumble Strips | H32: CMF for Passing Lanes | I32: CMF for Two-Way Left-Turn Lane | J32: CMF for Roadside Design | K32: CMF for Lighting | L32: CMF for Automated Speed Enforcement | M32: Combined CMF | AD32: 7 | AF32: =+(AF31+AF33)/2 -> 0.99 | AG32: =+(AG31+AG33)/2 -> 1.00375 | AH32: =+(AH31+AH33)/2 -> 0.935
AD33: 8 | AF33: 0.98 | AG33: =+(($I$10-400)*-0.00006875)+0.98 -> 1.0075 | AH33: 0.87
AD34: Note: The collision types related to shoulder width to which this CMF applies include single-vehicle run-off-the-road and multiple-vehicle head-on, opposite-direction sideswipe, and same-direction sideswipe crashes.
A36: CMF 1r | B36: CMF 2r | C36: CMF 3r | D36: CMF 4r | E36: CMR 5r | F36: CMF 6r | G36: CMF 7r | H36: CMF 8r | I36: CMF 9r | J36: CMF 10r | K36: CMF 11r | L36: CMF 12r | M36: CMF comb
A37: from Equation 10-11 | B37: from Equation 10-12 | C37: from Equation 10-13 | D37: from Equations 10-14, 10-15, or 10-16 | E37: from Table 10-11 | F37: from Equation 10-17 | G37: from Section 10.7.1 | H37: from Section 10.7.1 | I37: from Equation 10-18 & 10-19 | J37: from Equation 10-20 | K37: from Equation 10-21 | L37: from Section 10.7.1 | M37: (1)x(2)x … x(11)x(12)
A41: =((IF($I$10>2000,(VLOOKUP($I$11,$AD$9:$AH$15,5,FALSE)),IF($I$10<400,(VLOOKUP($I$11,$AD$9:$AH$15,3,FALSE)),(VLOOKUP($I$11,$AD$9:$AH$15,4)))))-1)*(IF( 'Segment Tables'!D23="No", (('Segment Tables'!$G$29+'Segment Tables'!$G$34+'Segment Tables'!$G$36)/100),(('Segment Tables'!$K$29+'Segment Tables'!$K$34+'Segment Tables'!$K$36)/100)))+1 ->  | B41: =($U$10+$AA$10)/2 -> 1.0574 | C41: =+U22 -> 1 | D41: =IF($I$17>=0.02,(1.06+3*($I$17-0.02)),IF($I$17<0.01,1,(1+6*($I$17-0.01)))) -> 1 | E41: =IF($I$18>6,1.16,(IF($I$18<=3,1,1.1))) -> 1 | F41: =IF($I$19>5,(0.322+$I$19*(0.05-0.005*LN($I$10)))/(0.322+5*(0.05-0.005*LN($I$10))),1) -> 1 | G41: =IF(I22="Present",1,IF($I$20="Present",0.94,1)) -> 1 | H41: =IF($I$21="Present (1 lane)",0.75,IF($I$21="Present (2 lanes)", 0.65, 1)) -> 1 | I41: =IF($I$22="Not Present",1,IF($I$19<=5,1,(1-(0.7*0.5*((0.0047*$I$19)+($I$19*$I$19*0.0024))/(1.199+(0.0047*$I$19)+(0.0024*$I$19*$I$19)))))) -> 1 | J41: =EXP($I$23*0.0668-0.6869)/EXP(-0.4865) -> 0.8184033263 | K41: =IF($I$24="Present",(1-((1-(0.72*IF('Segment Tables'!$E$45="No",'Segment Tables'!$C$49,'Segment Tables'!$I$49))-(0.83*IF('Segment Tables'!$E$45="No",'Segment Tables'!$E$49,'Segment Tables'!$K$49)))*IF('Segment Tables'!$E$45="No",'Segment Tables'!$F$49,'Segment Tables'!$L$49))),1) -> 1 | L41: =IF($I$25="Present",0.93,1) -> 1 | M41: =+A41*B41*C41*D41*E41*F41*G41*H41*I41*J41*K41*L41 -> 
A45: Worksheet 1C -- Roadway Segment Crashes for Rural Two-Lane Two-Way Roadway Segments
A46: (1) | C46: (2) | D46: (3) | F46: (4) | H46: (5) | J46: (6) | K46: (7) | L46: (8)
A47: Crash Severity Level | C47: N spf rs | D47: Overdispersion Parameter, k | F47: Crash Severity Distribution | H47: N spf rs by Severity Distribution | J47: Combined CMFs | K47: Calibration Factor, Cr | L47: Predicted average crash frequency, N predicted rs (crashes/year)
C48: from Equation 10-6 | D48: from Equation 10-7 | F48: from Table 10-3 (proportion) | H48: (2)TOTAL x (4) | J48: (13) from Worksheet 1B | L48: (5)x(6)x(7)
A49: Total | C49: =+I10*I9*365*0.000001*EXP(-0.312) -> 0 | D49: =0.236/I9 ->  | F49: =+'Segment Tables'!E15/100 -> 1 | H49: =+C49*F49 -> 0 | J49: =+M41 ->  | K49: =+$I$26 -> 0 | L49: =+H49*J49*K49 -> 
A50: Fatal and Injury (FI) | C50: -- | D50: -- | F50: =+IF('Segment Tables'!$D$8="No",('Segment Tables'!$E$13/100),('Segment Tables'!$H$13/100)) -> 0.321 | H50: =+C49*F50 -> 0 | J50: =+M41 ->  | K50: =+$I$26 -> 0 | L50: =+H50*J50*K50 -> 
A51: Property Damage Only (PDO) | C51: -- | D51: -- | F51: =+IF('Segment Tables'!$D$8="No",('Segment Tables'!$E$14/100),('Segment Tables'!$H$14/100)) -> 0.679 | H51: =+C49*F51 -> 0 | J51: =+M41 ->  | K51: =+$I$26 -> 0 | L51: =+H51*J51*K51 -> 
A55: Worksheet 1D -- Crashes by Severity Level and Collision Type for Rural Two-Lane Two-Way Roadway Segments
A56: (1) | C56: (2) | D56: (3) | F56: (4) | H56: (5) | J56: (6) | L56: (7)
A57: Collision Type | C57: Proportion of Collision Type(TOTAL) | D57: N predicted rs (TOTAL) (crashes/year) | F57: Proportion of Collision Type(FI) | H57: N predicted rs (FI) (crashes/year) | J57: Proportion of Collision Type(PDO) | L57: N predicted rs (PDO) (crashes/year)
C58: from Table 10-4 | D58: (8)TOTAL from Worksheet 1C | F58: from Table 10-4 | H58: (8)FI from Worksheet 1C | J58: from Table 10-4 | L58: (8)PDO from Worksheet 1C
A59: Total | C59: =+C68+C75 -> 1 | D59: =+$L$49 ->  | F59: =+F68+F75 -> 1 | H59: =+$L$50 ->  | J59: 1 | L59: =+$L$51 -> 
D60: (2)x(3)TOTAL | H60: (4)x(5)FI | L60: (6)x(7)PDO
A61: SINGLE-VEHICLE
A62: Collision with animal | C62: =IF('Segment Tables'!$D$23="No",('Segment Tables'!$G25/100),('Segment Tables'!$K25/100)) -> 0.121 | D62: =+$L$49*C62 ->  | F62: =IF('Segment Tables'!$D$23="No",'Segment Tables'!$E25/100,'Segment Tables'!$I25/100) -> 0.038 | H62: =+$L$50*F62 ->  | J62: =IF('Segment Tables'!$D$23="No",'Segment Tables'!$F25/100,'Segment Tables'!$J25/100) -> 0.184 | L62: =+$L$51*J62 -> 
A63: Collision with bicycle | C63: =IF('Segment Tables'!$D$23="No",('Segment Tables'!$G26/100),('Segment Tables'!$K26/100)) -> 0.002 | D63: =+$L$49*C63 ->  | F63: =IF('Segment Tables'!$D$23="No",'Segment Tables'!$E26/100,'Segment Tables'!$I26/100) -> 0.004 | H63: =+$L$50*F63 ->  | J63: =IF('Segment Tables'!$D$23="No",'Segment Tables'!$F26/100,'Segment Tables'!$J26/100) -> 0.001 | L63: =+$L$51*J63 -> 
A64: Collision with pedestrian | C64: =IF('Segment Tables'!$D$23="No",('Segment Tables'!$G27/100),('Segment Tables'!$K27/100)) -> 0.003 | F64: =IF('Segment Tables'!$D$23="No",'Segment Tables'!$E27/100,'Segment Tables'!$I27/100) -> 0.007 | J64: =IF('Segment Tables'!$D$23="No",'Segment Tables'!$F27/100,'Segment Tables'!$J27/100) -> 0.001
A65: Overturned | C65: =IF('Segment Tables'!$D$23="No",('Segment Tables'!$G28/100),('Segment Tables'!$K28/100)) -> 0.025 | F65: =IF('Segment Tables'!$D$23="No",'Segment Tables'!$E28/100,'Segment Tables'!$I28/100) -> 0.037 | J65: =IF('Segment Tables'!$D$23="No",'Segment Tables'!$F28/100,'Segment Tables'!$J28/100) -> 0.015
A66: Ran off road | C66: =IF('Segment Tables'!$D$23="No",('Segment Tables'!$G29/100),('Segment Tables'!$K29/100)) -> 0.521 | F66: =IF('Segment Tables'!$D$23="No",'Segment Tables'!$E29/100,'Segment Tables'!$I29/100) -> 0.545 | J66: =IF('Segment Tables'!$D$23="No",'Segment Tables'!$F29/100,'Segment Tables'!$J29/100) -> 0.505
A67: Other single-vehicle collision | C67: =IF('Segment Tables'!$D$23="No",('Segment Tables'!$G30/100),('Segment Tables'!$K30/100)) -> 0.021 | F67: =IF('Segment Tables'!$D$23="No",'Segment Tables'!$E30/100,'Segment Tables'!$I30/100) -> 0.007 | J67: =IF('Segment Tables'!$D$23="No",'Segment Tables'!$F30/100,'Segment Tables'!$J30/100) -> 0.029
A68: Total single-vehicle crashes | C68: =+SUM(C62:C67) -> 0.693 | F68: =SUM(F62:G67) -> 0.638 | J68: =SUM(J62:K67) -> 0.735
A69: MULTIPLE-VEHICLE
A70: Angle collision | C70: =IF('Segment Tables'!$D$23="No",('Segment Tables'!$G33/100),('Segment Tables'!$K33/100)) -> 0.085 | D70: =+$L$49*C70 ->  | F70: =IF('Segment Tables'!$D$23="No",'Segment Tables'!$E33/100,'Segment Tables'!$I33/100) -> 0.1 | H70: =+$L$50*F70 ->  | J70: =IF('Segment Tables'!$D$23="No",'Segment Tables'!$F33/100,'Segment Tables'!$J33/100) -> 0.072 | L70: =+$L$51*J70 -> 
A71: Head-on collision | C71: =IF('Segment Tables'!$D$23="No",('Segment Tables'!$G34/100),('Segment Tables'!$K34/100)) -> 0.016 | F71: =IF('Segment Tables'!$D$23="No",'Segment Tables'!$E34/100,'Segment Tables'!$I34/100) -> 0.034 | J71: =IF('Segment Tables'!$D$23="No",'Segment Tables'!$F34/100,'Segment Tables'!$J34/100) -> 0.003 | L71: =+$L$51*J71 -> 
A72: Rear-end collision | C72: =IF('Segment Tables'!$D$23="No",('Segment Tables'!$G35/100),('Segment Tables'!$K35/100)) -> 0.142 | F72: =IF('Segment Tables'!$D$23="No",'Segment Tables'!$E35/100,'Segment Tables'!$I35/100) -> 0.164 | J72: =IF('Segment Tables'!$D$23="No",'Segment Tables'!$F35/100,'Segment Tables'!$J35/100) -> 0.122 | L72: =+$L$51*J72 -> 
A73: Sideswipe collision | C73: =IF('Segment Tables'!$D$23="No",('Segment Tables'!$G36/100),('Segment Tables'!$K36/100)) -> 0.037 | F73: =IF('Segment Tables'!$D$23="No",'Segment Tables'!$E36/100,'Segment Tables'!$I36/100) -> 0.038 | J73: =IF('Segment Tables'!$D$23="No",'Segment Tables'!$F36/100,'Segment Tables'!$J36/100) -> 0.038 | L73: =+$L$51*J73 -> 
A74: Other multiple-vehicle collision | C74: =IF('Segment Tables'!$D$23="No",('Segment Tables'!$G37/100),('Segment Tables'!$K37/100)) -> 0.027 | F74: =IF('Segment Tables'!$D$23="No",'Segment Tables'!$E37/100,'Segment Tables'!$I37/100) -> 0.026 | J74: =IF('Segment Tables'!$D$23="No",'Segment Tables'!$F37/100,'Segment Tables'!$J37/100) -> 0.03 | L74: =+$L$51*J74 -> 
A75: Total multiple-vehicle crashes | C75: =SUM(C70:C74) -> 0.307 | F75: =SUM(F70:F74) -> 0.362 | J75: =SUM(J70:J74) -> 0.265 | L75: =SUM(L70:L74) -> 
A79: Worksheet 1E -- Summary Results for Rural Two-Lane Two-Way Roadway Segments
A80: (1) | D80: (2) | G80: (3) | J80: (4) | L80: (5)
A81: Crash severity level | D81: Crash Severity Distribution (proportion) | G81: Predicted average crash frequency (crashes/year) | J81: Roadway segment length (mi) | L81: Crash rate (crashes/mi/year)
D82: (4) from Worksheet 1C | G82: (8) from Worksheet 1C | L82: (3)/(4)
A83: Total | D83: =+F49 -> 1 | G83: =+L49 ->  | J83: =+$I$9 -> 0 | L83: =+G83/J83 -> 
A84: Fatal and Injury (FI) | D84: =+F50 -> 0.321 | G84: =+L50 ->  | J84: =+$I$9 -> 0 | L84: =+G84/J84 -> 
A85: Property Damage Only (PDO) | D85: =+F51 -> 0.679 | G85: =+L51 ->  | J85: =+$I$9 -> 0 | L85: =+G85/J85 -> 

Sheet Segment Tables
B2: Tables Affiliated with Crash Statistics: | R2: Tables Affiliated with Crash Modification Factors:
B5: Table 10-3: Distribution for Crash Severity Level on Rural Two-Lane Two-Way Roadway Segments plus Locally-Derived Values | R5: Table 10-10: Crash Modification Factors for Shoulder Types and Shoulder Widths on Roadway Segments (CMFtra)
B7: Crash severity level | E7: Percentage of total roadway segment crashes | R7: Shoulder Type | S7: Shoulder width (ft.)
B8: Locally-Derived Values? | D8: No | E8: HSM-Provided Values | H8: Locally-Derived Values (Oregon) | S8: 0 | T8: 1 | U8: 2 | V8: 3 | W8: 4 | X8: 5 | Y8: 6 | Z8: 7 | AA8: 8
B9: Fatal | E9: 1.3 | H9: 3.1 | R9: Paved | S9: 1 | T9: 1 | U9: 1 | V9: 1 | W9: 1 | X9: =+(W9+Y9)/2 -> 1 | Y9: 1 | Z9: =+(Y9+AA9)/2 -> 1 | AA9: 1
B10: Incapacitating Injury | E10: 5.4 | H10: 7.7 | R10: Gravel | S10: 1 | T10: 1 | U10: 1.01 | V10: 1.01 | W10: 1.01 | X10: =+(W10+Y10)/2 -> 1.015 | Y10: 1.02 | Z10: =+(Y10+AA10)/2 -> 1.02 | AA10: 1.02
B11: Nonincapacitating Injury | E11: 10.9 | H11: 25.2 | R11: Composite | S11: 1 | T11: 1.01 | U11: 1.02 | V11: 1.02 | W11: 1.03 | X11: =+(W11+Y11)/2 -> 1.035 | Y11: 1.04 | Z11: =+(Y11+AA11)/2 -> 1.05 | AA11: 1.06
B12: Possible Injury | E12: 14.5 | H12: 18 | R12: Turf | S12: 1 | T12: 1.01 | U12: 1.03 | V12: 1.04 | W12: 1.05 | X12: =+(W12+Y12)/2 -> 1.065 | Y12: 1.08 | Z12: =+(Y12+AA12)/2 -> 1.095 | AA12: 1.11
B13: Total Fatal Plus Injury | E13: =SUM(E9:E12) -> 32.1 | H13: =SUM(H9:H12) -> 54 | R13: Note: The values for composite shoulders in this exhibit represent a shoulder for which 50 percent of the shoulder width is paved and 50 percent of the shoulder width is turf.
B14: Property Damage Only | E14: =100-E13 -> 67.9 | H14: =100-H13 -> 46
B15: TOTAL | E15: =SUM(E13:E14) -> 100 | H15: =SUM(H13:H14) -> 100
B16: Note: HSM-provided crash severity data based on HSIS data for Washington (2002-2006)
B18: Table 10-4: Default Distribution by Collision Type for Specific Crash Severity Levels on Rural Two-Lane Two-Way Roadway Segments plus Locally-Derived Values
E20: Percentage of total roadway segment crashes by crash severity level
E21: HSM-Provided Values | I21: Locally-Derived Values (Oregon)
B22: Collision type | E22: Total fatal and injury | F22: Property damage only | G22: TOTAL (all severity levels combined) | I22: Total fatal and injury | J22: Property damage only | K22: TOTAL (all severity levels combined)
B23: Locally-Derived Values? | D23: No
B24: SINGLE-VEHICLE CRASHES
B25: Collision with animal | E25: 3.8 | F25: 18.4 | G25: 12.1 | I25: 3.1 | J25: 12 | K25: 7.2
B26: Collision with bicycle | E26: 0.4 | F26: 0.1 | G26: 0.2 | I26: 0.6 | J26: 0 | K26: 0.3
B27: Collision with pedestrian | E27: 0.7 | F27: 0.1 | G27: 0.3 | I27: 0.8 | J27: 0 | K27: 0.4
B28: Overturned | E28: 3.7 | F28: 1.5 | G28: 2.5 | I28: 8.6 | J28: 3.8 | K28: 6.4
B29: Ran off road | E29: 54.5 | F29: 50.5 | G29: 52.1 | I29: 47.2 | J29: 39.1 | K29: 43.5
B30: Other single-vehicle crash | E30: 0.7 | F30: 2.9 | G30: 2.1 | I30: 1.7 | J30: 1.3 | K30: 1.5
B31: Total single-vehicle crashes | E31: =SUM(E25:E30) -> 63.8 | F31: =SUM(F25:F30) -> 73.5 | G31: =SUM(G25:H30) -> 69.3 | I31: =SUM(I25:I30) -> 62 | J31: =SUM(J25:J30) -> 56.2 | K31: =SUM(K25:L30) -> 59.3
B32: MULTIPLE-VEHICLE CRASHES
B33: Angle collision | E33: 10 | F33: 7.2 | G33: 8.5 | I33: 0.8 | J33: 0.7 | K33: 0.8
B34: Head-on collision | E34: 3.4 | F34: 0.3 | G34: 1.6 | I34: 5.8 | J34: 1 | K34: 3.6
B35: Rear-end collision | E35: 16.4 | F35: 12.2 | G35: 14.2 | I35: 18.8 | J35: 21.5 | K35: 20.1
B36: Sideswipe collision | E36: 3.8 | F36: 3.8 | G36: 3.7 | I36: 4.4 | J36: 7.1 | K36: 5.6
B37: Other multiple-vehicle collision | E37: 2.6 | F37: 3 | G37: 2.7 | I37: 8.2 | J37: 13.5 | K37: 10.6
B38: Total multiple-vehicle crashes | E38: =SUM(E33:E37) -> 36.2 | F38: =SUM(F33:F37) -> 26.5 | G38: =SUM(G33:H37) -> 30.7 | I38: =SUM(I33:I37) -> 38 | J38: =SUM(J33:J37) -> 43.8 | K38: =SUM(K33:L37) -> 40.7
B39: TOTAL CRASHES | E39: =+E31+E38 -> 100 | F39: =+F31+F38 -> 100 | G39: 100 | I39: =+I31+I38 -> 100 | J39: =+J31+J38 -> 100 | K39: 100
B40: Note: HSM-provided values based on crash data for Washington (2002-2006); includes approximately 70 percent opposite-direction sideswipe and 30 percent same-direction sideswipe collisions.
B43: Table 10-12: Nighttime Crash Proportions for Unlighted Roadway Segments plus Locally-Derived Values
B44: Roadway Type | C44: HSM Default Values | I44: Locally Derived Values
C45: Locally-Derived Values? | E45: No | F45: Proportion of crashes that occur at night | I45: Proportion of total nighttime crashes by severity level | L45: Proportion of crashes that occur at night
C46: Proportion of total nighttime crashes by severity level
C48: Fatal and Injury pinr | E48: PDO ppnr | F48: pnr | I48: Fatal and Injury pinr | K48: PDO ppnr | L48: pnr
B49: 2U | C49: 0.382 | E49: 0.618 | F49: 0.37 | I49: 0.54 | K49: 0.46 | L49: 0.28
B50: Note: HSM-provided values based on HSIS data for Washington (2002-2006)

Sheet Intersection1
A2: Worksheet 2A -- General Information and Input Data for Rural Two-Lane Two-Way Roadway Intersections
A3: General Information | G3: Location Information
A4: Analyst | G4: Roadway
A5: Agency or Company | G5: Intersection
A6: Date Performed | G6: Jurisdiction
G7: Analysis Year
A8: Input Data | G8: Base Conditions | I8: Site Conditions
A9: Intersection type (3ST, 4ST, 4SG) | G9: -- | O9: =IF($I$9="3ST","Unsignalized three-leg (stop control on minor-road approaches)",IF($I$9="4ST","Unsignalized four-leg (stop control on minor-road approaches)","Signalized four-leg")) -> Signalized four-leg
A10: AADTmajor (veh/day) | D10: AADTMAX = | E10: =IF($I$9="3ST",19500,IF($I$9="4ST",14700,25200)) -> 25200 | F10: (veh/day) | G10: -- | N10: =IF(I10>E10,"AADT out of range","AADT OK") -> AADT OK
A11: AADTminor (veh/day) | D11: AADTMAX = | E11: =IF($I$9="3ST",4300,IF($I$9="4ST",3500,12500)) -> 12500 | F11: (veh/day) | G11: -- | N11: =IF(I11>E11,"AADT out of range","AADT OK") -> AADT OK
A12: Intersection skew angle (degrees) | C12: [If 4ST, does skew differ for minor legs?] | G12: 0 | I12: Skew for Leg 1 (All): | K12: Skew for Leg 2 (4ST only): | O12: Skew Intersection:
A13: Number of signalized or uncontrolled approaches with a left-turn lane (0, 1, 2, 3, 4) | G13: 0
A14: Number of signalized or uncontrolled approaches with a right-turn lane (0, 1, 2, 3, 4) | G14: 0
A15: Intersection lighting (present/not present) | G15: Not Present
A16: Calibration Factor, Ci | G16: 1
A19: Worksheet 2B -- Crash Modification Factors for Rural Two-Lane Two-Way Roadway Intersections
A20: (1) | D20: (2) | F20: (3) | I20: (4) | L20: (5)
A21: CMF for Intersection Skew Angle | D21: CMF for Left-Turn Lanes | F21: CMF for Right-Turn Lanes | I21: CMF for Lighting | L21: Combined CMF
A22: CMF 1i | D22: CMF 2i | F22: CMF 3i | I22: CMF 4i | L22: CMF COMB
A23: from Equations 10-22 or 10-23 | D23: from Table 10-13 | F23: from Table 10-14 | I23: from Equation 10-24 | L23: (1)*(2)*(3)*(4)
A24: =IF(+$I$9="3ST",(EXP(0.004*$J$12)),(IF(+$I$9="4ST",(IF($F$12="No",(EXP(0.0054*$J$12)),(((EXP(0.0054*$J$12))+(EXP(0.0054*$M$12)))/2))),1))) -> 1 | D24: =IF($I$9="3ST",(IF($I$13=0,1,(HLOOKUP($I$13,'Intersection Tables'!$AC$9:$AF$15,3,FALSE)))),(IF($I$9="4ST",(IF($I$13=0,1,(HLOOKUP($I$13,'Intersection Tables'!$AC$9:$AF$15,5,FALSE)))),(IF($I$13=0,1,(HLOOKUP($I$13,'Intersection Tables'!$AC$9:$AF$15,7,FALSE))))))) -> 1 | F24: =IF($I$9="3ST",(IF($I$14=0,1,(HLOOKUP($I$14,'Intersection Tables'!$AC$25:$AF$31,3,FALSE)))),(IF($I$9="4ST",(IF($I$14=0,1,(HLOOKUP($I$14,'Intersection Tables'!$AC$25:$AF$31,5,FALSE)))),(IF($I$14=0,1,(HLOOKUP($I$14,'Intersection Tables'!$AC$25:$AF$31,7,FALSE))))))) -> 1 | I24: =IF(($I$15="Not Present"),1,(1-0.38*(IF('Intersection Tables'!$D$49="No",(VLOOKUP( $I$9,'Intersection Tables'!$B$50:$F$52,4,FALSE)),(VLOOKUP($I$9,'Intersection Tables'!B50:H52,6,FALSE)))))) ->  | L24: =+A24*D24*F24*I24 -> 
A27: Worksheet 2C -- Intersection Crashes for Rural Two-Lane Two-Way Roadway Intersections
A28: (1) | C28: (2) | E28: (3) | F28: (4) | G28: (5) | I28: (6) | J28: (7) | L28: (8)
A29: Crash Severity Level | C29: N spf 3ST, 4ST or 4SG | E29: Overdispersion Parameter, k | F29: Crash Severity Distribution | G29: N spf 3ST, 4ST or 4SG by Severity Distribution | I29: Combined CMFs | J29: Calibration Factor, Ci | L29: Predicted average crash frequency, N predicted int
C31: from Equations 10-8, 10-9, or 10-10 | E31: from Section 10.6.2 | F31: from Table 10-5 | G31: (2)TOTAL * (4) | I31: from (5) of Worksheet 2B | L31: (5)*(6)*(7)
A33: Total | C33: =IF($I$9="3ST",(EXP(-9.86+0.79*(LN($I$10))+(0.49*(LN($I$11))))),IF($I$9="4ST",(EXP(-8.56+0.6*(LN($I$10))+(0.61*(LN($I$11))))),(EXP(-5.13+(0.6*(LN($I$10)))+(0.2*(LN($I$11))))))) ->  | E33: =IF($I$9="3ST",0.54,(IF($I$9="4ST",0.24,0.11))) -> 0.11 | F33: =IF($I$9="3ST",IF('Intersection Tables'!$D$10="No",'Intersection Tables'!$E$18,'Intersection Tables'!$K$18),(IF($I$9="4ST",(IF('Intersection Tables'!$D$10="No",'Intersection Tables'!$G$18,'Intersection Tables'!$M$18)),(IF('Intersection Tables'!$D$10="No",'Intersection Tables'!$I$18,'Intersection Tables'!$O$18)))))/100 -> 1 | G33: =+C33*F33 ->  | I33: =+$L$24 ->  | J33: =+$I$16 -> 0 | L33: =+G33*I33*J33 -> 
A34: Fatal and Injury (FI) | C34: -- | E34: -- | F34: =IF($I$9="3ST",IF('Intersection Tables'!$D$10="No",'Intersection Tables'!$E$16,'Intersection Tables'!$K$16),(IF($I$9="4ST",(IF('Intersection Tables'!$D$10="No",'Intersection Tables'!$G$16,'Intersection Tables'!$M$16)),(IF('Intersection Tables'!$D$10="No",'Intersection Tables'!$I$16,'Intersection Tables'!$O$16)))))/100 -> 0.34 | G34: =+C33*F34 ->  | I34: =+$L$24 ->  | J34: =+$I$16 -> 0 | L34: =+G34*I34*J34 -> 
A35: Property Damage Only (PDO) | C35: -- | E35: -- | F35: =IF($I$9="3ST",IF('Intersection Tables'!$D$10="No",'Intersection Tables'!$E$17,'Intersection Tables'!$K$17),(IF($I$9="4ST",(IF('Intersection Tables'!$D$10="No",'Intersection Tables'!$G$17,'Intersection Tables'!$M$17)),(IF('Intersection Tables'!$D$10="No",'Intersection Tables'!$I$17,'Intersection Tables'!$O$17)))))/100 -> 0.66 | G35: =+C33*F35 ->  | I35: =+$L$24 ->  | J35: =+$I$16 -> 0 | L35: =+G35*I35*J35 -> 
A38: Worksheet 2D -- Crashes by Severity Level and Collision Type for Rural Two-Lane Two-Way Road Intersections
A39: (1) | C39: (2) | D39: (3) | F39: (4) | H39: (5) | J39: (6) | L39: (7)
A40: Collision Type | C40: Proportion of Collision Type(TOTAL) | D40: N predicted int (TOTAL) (crashes/year) | F40: Proportion of Collision Type(FI) | H40: N predicted int (FI) (crashes/year) | J40: Proportion of Collision Type(PDO) | L40: N predicted int (PDO) (crashes/year)
C43: from Table 10-6 | D43: (8)TOTAL from Worksheet 2C | F43: from Table 10-6 | H43: (8)FI from Worksheet 2C | J43: from Table 10-6 | L43: (8)PDO from Worksheet 2C
A45: Total | C45: =IF('Intersection Tables'!$D$27="No",(IF($I$9="3ST",'Intersection Tables'!G43,(IF($I$9="4ST",'Intersection Tables'!J43,'Intersection Tables'!M43)))/100),(IF($I$9="3ST",'Intersection Tables'!P43,(IF($I$9="4ST",+'Intersection Tables'!S43,+'Intersection Tables'!V43)))/100)) -> 1 | D45: =+L33 ->  | F45: =IF('Intersection Tables'!$D$27="No",(IF($I$9="3ST",'Intersection Tables'!E43,(IF($I$9="4ST",'Intersection Tables'!H43,'Intersection Tables'!K43)))/100),(IF($I$9="3ST",'Intersection Tables'!N43,(IF($I$9="4ST",+'Intersection Tables'!Q43,+'Intersection Tables'!T43)))/100)) -> 1 | H45: =+L34 ->  | J45: =IF('Intersection Tables'!$D$27="No",(IF($I$9="3ST",'Intersection Tables'!F43,(IF($I$9="4ST",'Intersection Tables'!I43,'Intersection Tables'!L43)))/100),(IF($I$9="3ST",'Intersection Tables'!O43,(IF($I$9="4ST",+'Intersection Tables'!R43,+'Intersection Tables'!U43)))/100)) -> 1 | L45: =+L35 -> 
D46: (2)x(3)TOTAL | H46: (4)x(5)FI | L46: (6)x(7)PDO
A47: SINGLE-VEHICLE
A48: Collision with animal | C48: =IF('Intersection Tables'!$D$27="No",(IF($I$9="3ST",'Intersection Tables'!G29,(IF($I$9="4ST",'Intersection Tables'!J29,'Intersection Tables'!M29)))/100),(IF($I$9="3ST",'Intersection Tables'!P29,(IF($I$9="4ST",+'Intersection Tables'!S29,+'Intersection Tables'!V29)))/100)) -> 0.002 | D48: =+C48*$D$45 ->  | F48: =IF('Intersection Tables'!$D$27="No",(IF($I$9="3ST",'Intersection Tables'!E29,(IF($I$9="4ST",'Intersection Tables'!H29,'Intersection Tables'!K29)))/100),(IF($I$9="3ST",'Intersection Tables'!N29,(IF($I$9="4ST",+'Intersection Tables'!Q29,+'Intersection Tables'!T29)))/100)) -> 0 | H48: =+$H$45*F48 ->  | J48: =IF('Intersection Tables'!$D$27="No",(IF($I$9="3ST",'Intersection Tables'!F29,(IF($I$9="4ST",'Intersection Tables'!I29,'Intersection Tables'!L29)))/100),(IF($I$9="3ST",'Intersection Tables'!O29,(IF($I$9="4ST",+'Intersection Tables'!R29,+'Intersection Tables'!U29)))/100)) -> 0.003 | L48: =+$L$45*J48 -> 
A49: Collision with bicycle | C49: =IF('Intersection Tables'!$D$27="No",(IF($I$9="3ST",'Intersection Tables'!G30,(IF($I$9="4ST",'Intersection Tables'!J30,'Intersection Tables'!M30)))/100),(IF($I$9="3ST",'Intersection Tables'!P30,(IF($I$9="4ST",+'Intersection Tables'!S30,+'Intersection Tables'!V30)))/100)) -> 0.001 | D49: =+C49*$D$45 ->  | F49: =IF('Intersection Tables'!$D$27="No",(IF($I$9="3ST",'Intersection Tables'!E30,(IF($I$9="4ST",'Intersection Tables'!H30,'Intersection Tables'!K30)))/100),(IF($I$9="3ST",'Intersection Tables'!N30,(IF($I$9="4ST",+'Intersection Tables'!Q30,+'Intersection Tables'!T30)))/100)) -> 0.001 | H49: =+$H$45*F49 ->  | J49: =IF('Intersection Tables'!$D$27="No",(IF($I$9="3ST",'Intersection Tables'!F30,(IF($I$9="4ST",'Intersection Tables'!I30,'Intersection Tables'!L30)))/100),(IF($I$9="3ST",'Intersection Tables'!O30,(IF($I$9="4ST",+'Intersection Tables'!R30,+'Intersection Tables'!U30)))/100)) -> 0.001 | L49: =+$L$45*J49 -> 
A50: Collision with pedestrian | C50: =IF('Intersection Tables'!$D$27="No",(IF($I$9="3ST",'Intersection Tables'!G31,(IF($I$9="4ST",'Intersection Tables'!J31,'Intersection Tables'!M31)))/100),(IF($I$9="3ST",'Intersection Tables'!P31,(IF($I$9="4ST",+'Intersection Tables'!S31,+'Intersection Tables'!V31)))/100)) -> 0.001 | F50: =IF('Intersection Tables'!$D$27="No",(IF($I$9="3ST",'Intersection Tables'!E31,(IF($I$9="4ST",'Intersection Tables'!H31,'Intersection Tables'!K31)))/100),(IF($I$9="3ST",'Intersection Tables'!N31,(IF($I$9="4ST",+'Intersection Tables'!Q31,+'Intersection Tables'!T31)))/100)) -> 0.001 | J50: =IF('Intersection Tables'!$D$27="No",(IF($I$9="3ST",'Intersection Tables'!F31,(IF($I$9="4ST",'Intersection Tables'!I31,'Intersection Tables'!L31)))/100),(IF($I$9="3ST",'Intersection Tables'!O31,(IF($I$9="4ST",+'Intersection Tables'!R31,+'Intersection Tables'!U31)))/100)) -> 0.001
A51: Overturned | C51: =IF('Intersection Tables'!$D$27="No",(IF($I$9="3ST",'Intersection Tables'!G32,(IF($I$9="4ST",'Intersection Tables'!J32,'Intersection Tables'!M32)))/100),(IF($I$9="3ST",'Intersection Tables'!P32,(IF($I$9="4ST",+'Intersection Tables'!S32,+'Intersection Tables'!V32)))/100)) -> 0.003 | F51: =IF('Intersection Tables'!$D$27="No",(IF($I$9="3ST",'Intersection Tables'!E32,(IF($I$9="4ST",'Intersection Tables'!H32,'Intersection Tables'!K32)))/100),(IF($I$9="3ST",'Intersection Tables'!N32,(IF($I$9="4ST",+'Intersection Tables'!Q32,+'Intersection Tables'!T32)))/100)) -> 0.003 | J51: =IF('Intersection Tables'!$D$27="No",(IF($I$9="3ST",'Intersection Tables'!F32,(IF($I$9="4ST",'Intersection Tables'!I32,'Intersection Tables'!L32)))/100),(IF($I$9="3ST",'Intersection Tables'!O32,(IF($I$9="4ST",+'Intersection Tables'!R32,+'Intersection Tables'!U32)))/100)) -> 0.003
A52: Ran off road | C52: =IF('Intersection Tables'!$D$27="No",(IF($I$9="3ST",'Intersection Tables'!G33,(IF($I$9="4ST",'Intersection Tables'!J33,'Intersection Tables'!M33)))/100),(IF($I$9="3ST",'Intersection Tables'!P33,(IF($I$9="4ST",+'Intersection Tables'!S33,+'Intersection Tables'!V33)))/100)) -> 0.064 | F52: =IF('Intersection Tables'!$D$27="No",(IF($I$9="3ST",'Intersection Tables'!E33,(IF($I$9="4ST",'Intersection Tables'!H33,'Intersection Tables'!K33)))/100),(IF($I$9="3ST",'Intersection Tables'!N33,(IF($I$9="4ST",+'Intersection Tables'!Q33,+'Intersection Tables'!T33)))/100)) -> 0.032 | J52: =IF('Intersection Tables'!$D$27="No",(IF($I$9="3ST",'Intersection Tables'!F33,(IF($I$9="4ST",'Intersection Tables'!I33,'Intersection Tables'!L33)))/100),(IF($I$9="3ST",'Intersection Tables'!O33,(IF($I$9="4ST",+'Intersection Tables'!R33,+'Intersection Tables'!U33)))/100)) -> 0.081
A53: Other single-vehicle collision | C53: =IF('Intersection Tables'!$D$27="No",(IF($I$9="3ST",'Intersection Tables'!G34,(IF($I$9="4ST",'Intersection Tables'!J34,'Intersection Tables'!M34)))/100),(IF($I$9="3ST",'Intersection Tables'!P34,(IF($I$9="4ST",+'Intersection Tables'!S34,+'Intersection Tables'!V34)))/100)) -> 0.005 | F53: =IF('Intersection Tables'!$D$27="No",(IF($I$9="3ST",'Intersection Tables'!E34,(IF($I$9="4ST",'Intersection Tables'!H34,'Intersection Tables'!K34)))/100),(IF($I$9="3ST",'Intersection Tables'!N34,(IF($I$9="4ST",+'Intersection Tables'!Q34,+'Intersection Tables'!T34)))/100)) -> 0.003 | J53: =IF('Intersection Tables'!$D$27="No",(IF($I$9="3ST",'Intersection Tables'!F34,(IF($I$9="4ST",'Intersection Tables'!I34,'Intersection Tables'!L34)))/100),(IF($I$9="3ST",'Intersection Tables'!O34,(IF($I$9="4ST",+'Intersection Tables'!R34,+'Intersection Tables'!U34)))/100)) -> 0.018
A54: Total single-vehicle crashes | C54: =IF('Intersection Tables'!$D$27="No",(IF($I$9="3ST",'Intersection Tables'!G35,(IF($I$9="4ST",'Intersection Tables'!J35,'Intersection Tables'!M35)))/100),(IF($I$9="3ST",'Intersection Tables'!P35,(IF($I$9="4ST",+'Intersection Tables'!S35,+'Intersection Tables'!V35)))/100)) -> 0.076 | F54: =IF('Intersection Tables'!$D$27="No",(IF($I$9="3ST",'Intersection Tables'!E35,(IF($I$9="4ST",'Intersection Tables'!H35,'Intersection Tables'!K35)))/100),(IF($I$9="3ST",'Intersection Tables'!N35,(IF($I$9="4ST",+'Intersection Tables'!Q35,+'Intersection Tables'!T35)))/100)) -> 0.04 | J54: =IF('Intersection Tables'!$D$27="No",(IF($I$9="3ST",'Intersection Tables'!F35,(IF($I$9="4ST",'Intersection Tables'!I35,'Intersection Tables'!L35)))/100),(IF($I$9="3ST",'Intersection Tables'!O35,(IF($I$9="4ST",+'Intersection Tables'!R35,+'Intersection Tables'!U35)))/100)) -> 0.107
A55: MULTIPLE-VEHICLE
A56: Angle collision | C56: =IF('Intersection Tables'!$D$27="No",(IF($I$9="3ST",'Intersection Tables'!G37,(IF($I$9="4ST",'Intersection Tables'!J37,'Intersection Tables'!M37)))/100),(IF($I$9="3ST",'Intersection Tables'!P37,(IF($I$9="4ST",+'Intersection Tables'!S37,+'Intersection Tables'!V37)))/100)) -> 0.274 | D56: =+C56*$D$45 ->  | F56: =IF('Intersection Tables'!$D$27="No",(IF($I$9="3ST",'Intersection Tables'!E37,(IF($I$9="4ST",'Intersection Tables'!H37,'Intersection Tables'!K37)))/100),(IF($I$9="3ST",'Intersection Tables'!N37,(IF($I$9="4ST",+'Intersection Tables'!Q37,+'Intersection Tables'!T37)))/100)) -> 0.336 | H56: =+$H$45*F56 ->  | J56: =IF('Intersection Tables'!$D$27="No",(IF($I$9="3ST",'Intersection Tables'!F37,(IF($I$9="4ST",'Intersection Tables'!I37,'Intersection Tables'!L37)))/100),(IF($I$9="3ST",'Intersection Tables'!O37,(IF($I$9="4ST",+'Intersection Tables'!R37,+'Intersection Tables'!U37)))/100)) -> 0.242 | L56: =+$L$45*J56 -> 
A57: Head-on collision | C57: =IF('Intersection Tables'!$D$27="No",(IF($I$9="3ST",'Intersection Tables'!G38,(IF($I$9="4ST",'Intersection Tables'!J38,'Intersection Tables'!M38)))/100),(IF($I$9="3ST",'Intersection Tables'!P38,(IF($I$9="4ST",+'Intersection Tables'!S38,+'Intersection Tables'!V38)))/100)) -> 0.054 | F57: =IF('Intersection Tables'!$D$27="No",(IF($I$9="3ST",'Intersection Tables'!E38,(IF($I$9="4ST",'Intersection Tables'!H38,'Intersection Tables'!K38)))/100),(IF($I$9="3ST",'Intersection Tables'!N38,(IF($I$9="4ST",+'Intersection Tables'!Q38,+'Intersection Tables'!T38)))/100)) -> 0.08 | J57: =IF('Intersection Tables'!$D$27="No",(IF($I$9="3ST",'Intersection Tables'!F38,(IF($I$9="4ST",'Intersection Tables'!I38,'Intersection Tables'!L38)))/100),(IF($I$9="3ST",'Intersection Tables'!O38,(IF($I$9="4ST",+'Intersection Tables'!R38,+'Intersection Tables'!U38)))/100)) -> 0.04
A58: Rear-end collision | C58: =IF('Intersection Tables'!$D$27="No",(IF($I$9="3ST",'Intersection Tables'!G39,(IF($I$9="4ST",'Intersection Tables'!J39,'Intersection Tables'!M39)))/100),(IF($I$9="3ST",'Intersection Tables'!P39,(IF($I$9="4ST",+'Intersection Tables'!S39,+'Intersection Tables'!V39)))/100)) -> 0.426 | F58: =IF('Intersection Tables'!$D$27="No",(IF($I$9="3ST",'Intersection Tables'!E39,(IF($I$9="4ST",'Intersection Tables'!H39,'Intersection Tables'!K39)))/100),(IF($I$9="3ST",'Intersection Tables'!N39,(IF($I$9="4ST",+'Intersection Tables'!Q39,+'Intersection Tables'!T39)))/100)) -> 0.403 | J58: =IF('Intersection Tables'!$D$27="No",(IF($I$9="3ST",'Intersection Tables'!F39,(IF($I$9="4ST",'Intersection Tables'!I39,'Intersection Tables'!L39)))/100),(IF($I$9="3ST",'Intersection Tables'!O39,(IF($I$9="4ST",+'Intersection Tables'!R39,+'Intersection Tables'!U39)))/100)) -> 0.438
A59: Sideswipe collision | C59: =IF('Intersection Tables'!$D$27="No",(IF($I$9="3ST",'Intersection Tables'!G40,(IF($I$9="4ST",'Intersection Tables'!J40,'Intersection Tables'!M40)))/100),(IF($I$9="3ST",'Intersection Tables'!P40,(IF($I$9="4ST",+'Intersection Tables'!S40,+'Intersection Tables'!V40)))/100)) -> 0.118 | F59: =IF('Intersection Tables'!$D$27="No",(IF($I$9="3ST",'Intersection Tables'!E40,(IF($I$9="4ST",'Intersection Tables'!H40,'Intersection Tables'!K40)))/100),(IF($I$9="3ST",'Intersection Tables'!N40,(IF($I$9="4ST",+'Intersection Tables'!Q40,+'Intersection Tables'!T40)))/100)) -> 0.051 | J59: =IF('Intersection Tables'!$D$27="No",(IF($I$9="3ST",'Intersection Tables'!F40,(IF($I$9="4ST",'Intersection Tables'!I40,'Intersection Tables'!L40)))/100),(IF($I$9="3ST",'Intersection Tables'!O40,(IF($I$9="4ST",+'Intersection Tables'!R40,+'Intersection Tables'!U40)))/100)) -> 0.153
A60: Other multiple-vehicle collision | C60: =IF('Intersection Tables'!$D$27="No",(IF($I$9="3ST",'Intersection Tables'!G41,(IF($I$9="4ST",'Intersection Tables'!J41,'Intersection Tables'!M41)))/100),(IF($I$9="3ST",'Intersection Tables'!P41,(IF($I$9="4ST",+'Intersection Tables'!S41,+'Intersection Tables'!V41)))/100)) -> 0.052 | F60: =IF('Intersection Tables'!$D$27="No",(IF($I$9="3ST",'Intersection Tables'!E41,(IF($I$9="4ST",'Intersection Tables'!H41,'Intersection Tables'!K41)))/100),(IF($I$9="3ST",'Intersection Tables'!N41,(IF($I$9="4ST",+'Intersection Tables'!Q41,+'Intersection Tables'!T41)))/100)) -> 0.09 | J60: =IF('Intersection Tables'!$D$27="No",(IF($I$9="3ST",'Intersection Tables'!F41,(IF($I$9="4ST",'Intersection Tables'!I41,'Intersection Tables'!L41)))/100),(IF($I$9="3ST",'Intersection Tables'!O41,(IF($I$9="4ST",+'Intersection Tables'!R41,+'Intersection Tables'!U41)))/100)) -> 0.02
A61: Total multiple-vehicle crashes | C61: =IF('Intersection Tables'!$D$27="No",(IF($I$9="3ST",'Intersection Tables'!G42,(IF($I$9="4ST",'Intersection Tables'!J42,'Intersection Tables'!M42)))/100),(IF($I$9="3ST",'Intersection Tables'!P42,(IF($I$9="4ST",+'Intersection Tables'!S42,+'Intersection Tables'!V42)))/100)) -> 0.924 | F61: =IF('Intersection Tables'!$D$27="No",(IF($I$9="3ST",'Intersection Tables'!E42,(IF($I$9="4ST",'Intersection Tables'!H42,'Intersection Tables'!K42)))/100),(IF($I$9="3ST",'Intersection Tables'!N42,(IF($I$9="4ST",+'Intersection Tables'!Q42,+'Intersection Tables'!T42)))/100)) -> 0.96 | J61: =IF('Intersection Tables'!$D$27="No",(IF($I$9="3ST",'Intersection Tables'!F42,(IF($I$9="4ST",'Intersection Tables'!I42,'Intersection Tables'!L42)))/100),(IF($I$9="3ST",'Intersection Tables'!O42,(IF($I$9="4ST",+'Intersection Tables'!R42,+'Intersection Tables'!U42)))/100)) -> 0.893
A64: Worksheet 2E -- Summary Results for Rural Two-Lane Two-Way Road Intersections
A65: (1) | E65: (2) | I65: (3)
A66: Crash severity level | E66: Crash Severity Distribution (proportion) | I66: Predicted average crash frequency (crashes / year)
E67: (4) from Worksheet 2C | I67: (8) from Worksheet 2C
A68: Total | E68: =+F33 -> 1 | I68: =+L33 -> 
A69: Fatal and Injury (FI) | E69: =+F34 -> 0.34 | I69: =+L34 -> 
A70: Property Damage Only (PDO) | E70: =+F35 -> 0.66 | I70: =+L35 -> 

Sheet Intersection2
A2: Worksheet 2A -- General Information and Input Data for Rural Two-Lane Two-Way Roadway Intersections
A3: General Information | G3: Location Information
A4: Analyst | G4: Roadway
A5: Agency or Company | G5: Intersection
A6: Date Performed | G6: Jurisdiction
G7: Analysis Year
A8: Input Data | G8: Base Conditions | I8: Site Conditions
A9: Intersection type (3ST, 4ST, 4SG) | G9: -- | O9: =IF($I$9="3ST","Unsignalized three-leg (stop control on minor-road approaches)",IF($I$9="4ST","Unsignalized four-leg (stop control on minor-road approaches)","Signalized four-leg")) -> Signalized four-leg
A10: AADTmajor (veh/day) | D10: AADTMAX = | E10: =IF($I$9="3ST",19500,IF($I$9="4ST",14700,25200)) -> 25200 | F10: (veh/day) | G10: -- | N10: =IF(I10>E10,"AADT out of range","AADT OK") -> AADT OK
A11: AADTminor (veh/day) | D11: AADTMAX = | E11: =IF($I$9="3ST",4300,IF($I$9="4ST",3500,12500)) -> 12500 | F11: (veh/day) | G11: -- | N11: =IF(I11>E11,"AADT out of range","AADT OK") -> AADT OK
A12: Intersection skew angle (degrees) | C12: [If 4ST, does skew differ for minor legs?] | G12: 0 | I12: Skew for Leg 1 (All): | K12: Skew for Leg 2 (4ST only): | O12: Skew Intersection:
A13: Number of signalized or uncontrolled approaches with a left-turn lane (0, 1, 2, 3, 4) | G13: 0
A14: Number of signalized or uncontrolled approaches with a right-turn lane (0, 1, 2, 3, 4) | G14: 0
A15: Intersection lighting (present/not present) | G15: Not Present
A16: Calibration Factor, Ci | G16: 1
A19: Worksheet 2B -- Crash Modification Factors for Rural Two-Lane Two-Way Roadway Intersections
A20: (1) | D20: (2) | F20: (3) | I20: (4) | L20: (5)
A21: CMF for Intersection Skew Angle | D21: CMF for Left-Turn Lanes | F21: CMF for Right-Turn Lanes | I21: CMF for Lighting | L21: Combined CMF
A22: CMF 1i | D22: CMF 2i | F22: CMF 3i | I22: CMF 4i | L22: CMF COMB
A23: from Equations 10-22 or 10-23 | D23: from Table 10-13 | F23: from Table 10-14 | I23: from Equation 10-24 | L23: (1)*(2)*(3)*(4)
A24: =IF(+$I$9="3ST",(EXP(0.004*$J$12)),(IF(+$I$9="4ST",(IF($F$12="No",(EXP(0.0054*$J$12)),(((EXP(0.0054*$J$12))+(EXP(0.0054*$M$12)))/2))),1))) -> 1 | D24: =IF($I$9="3ST",(IF($I$13=0,1,(HLOOKUP($I$13,'Intersection Tables'!$AC$9:$AF$15,3,FALSE)))),(IF($I$9="4ST",(IF($I$13=0,1,(HLOOKUP($I$13,'Intersection Tables'!$AC$9:$AF$15,5,FALSE)))),(IF($I$13=0,1,(HLOOKUP($I$13,'Intersection Tables'!$AC$9:$AF$15,7,FALSE))))))) -> 1 | F24: =IF($I$9="3ST",(IF($I$14=0,1,(HLOOKUP($I$14,'Intersection Tables'!$AC$25:$AF$31,3,FALSE)))),(IF($I$9="4ST",(IF($I$14=0,1,(HLOOKUP($I$14,'Intersection Tables'!$AC$25:$AF$31,5,FALSE)))),(IF($I$14=0,1,(HLOOKUP($I$14,'Intersection Tables'!$AC$25:$AF$31,7,FALSE))))))) -> 1 | I24: =IF(($I$15="Not Present"),1,(1-0.38*(IF('Intersection Tables'!$D$49="No",(VLOOKUP( $I$9,'Intersection Tables'!$B$50:$F$52,4,FALSE)),(VLOOKUP($I$9,'Intersection Tables'!B50:H52,6,FALSE)))))) ->  | L24: =+A24*D24*F24*I24 -> 
A27: Worksheet 2C -- Intersection Crashes for Rural Two-Lane Two-Way Roadway Intersections
A28: (1) | C28: (2) | E28: (3) | F28: (4) | G28: (5) | I28: (6) | J28: (7) | L28: (8)
A29: Crash Severity Level | C29: N spf 3ST, 4ST or 4SG | E29: Overdispersion Parameter, k | F29: Crash Severity Distribution | G29: N spf 3ST, 4ST or 4SG by Severity Distribution | I29: Combined CMFs | J29: Calibration Factor, Ci | L29: Predicted average crash frequency, N predicted int
C31: from Equations 10-8, 10-9, or 10-10 | E31: from Section 10.6.2 | F31: from Table 10-5 | G31: (2)TOTAL * (4) | I31: from (5) of Worksheet 2B | L31: (5)*(6)*(7)
A33: Total | C33: =IF($I$9="3ST",(EXP(-9.86+0.79*(LN($I$10))+(0.49*(LN($I$11))))),IF($I$9="4ST",(EXP(-8.56+0.6*(LN($I$10))+(0.61*(LN($I$11))))),(EXP(-5.13+(0.6*(LN($I$10)))+(0.2*(LN($I$11))))))) ->  | E33: =IF($I$9="3ST",0.54,(IF($I$9="4ST",0.24,0.11))) -> 0.11 | F33: =IF($I$9="3ST",IF('Intersection Tables'!$D$10="No",'Intersection Tables'!$E$18,'Intersection Tables'!$K$18),(IF($I$9="4ST",(IF('Intersection Tables'!$D$10="No",'Intersection Tables'!$G$18,'Intersection Tables'!$M$18)),(IF('Intersection Tables'!$D$10="No",'Intersection Tables'!$I$18,'Intersection Tables'!$O$18)))))/100 -> 1 | G33: =+C33*F33 ->  | I33: =+$L$24 ->  | J33: =+$I$16 -> 0 | L33: =+G33*I33*J33 -> 
A34: Fatal and Injury (FI) | C34: -- | E34: -- | F34: =IF($I$9="3ST",IF('Intersection Tables'!$D$10="No",'Intersection Tables'!$E$16,'Intersection Tables'!$K$16),(IF($I$9="4ST",(IF('Intersection Tables'!$D$10="No",'Intersection Tables'!$G$16,'Intersection Tables'!$M$16)),(IF('Intersection Tables'!$D$10="No",'Intersection Tables'!$I$16,'Intersection Tables'!$O$16)))))/100 -> 0.34 | G34: =+C33*F34 ->  | I34: =+$L$24 ->  | J34: =+$I$16 -> 0 | L34: =+G34*I34*J34 -> 
A35: Property Damage Only (PDO) | C35: -- | E35: -- | F35: =IF($I$9="3ST",IF('Intersection Tables'!$D$10="No",'Intersection Tables'!$E$17,'Intersection Tables'!$K$17),(IF($I$9="4ST",(IF('Intersection Tables'!$D$10="No",'Intersection Tables'!$G$17,'Intersection Tables'!$M$17)),(IF('Intersection Tables'!$D$10="No",'Intersection Tables'!$I$17,'Intersection Tables'!$O$17)))))/100 -> 0.66 | G35: =+C33*F35 ->  | I35: =+$L$24 ->  | J35: =+$I$16 -> 0 | L35: =+G35*I35*J35 -> 
A38: Worksheet 2D -- Crashes by Severity Level and Collision Type for Rural Two-Lane Two-Way Road Intersections
A39: (1) | C39: (2) | D39: (3) | F39: (4) | H39: (5) | J39: (6) | L39: (7)
A40: Collision Type | C40: Proportion of Collision Type(TOTAL) | D40: N predicted int (TOTAL) (crashes/year) | F40: Proportion of Collision Type(FI) | H40: N predicted int (FI) (crashes/year) | J40: Proportion of Collision Type(PDO) | L40: N predicted int (PDO) (crashes/year)
C43: from Table 10-6 | D43: (8)TOTAL from Worksheet 2C | F43: from Table 10-6 | H43: (8)FI from Worksheet 2C | J43: from Table 10-6 | L43: (8)PDO from Worksheet 2C
A45: Total | C45: =IF('Intersection Tables'!$D$27="No",(IF($I$9="3ST",'Intersection Tables'!G43,(IF($I$9="4ST",'Intersection Tables'!J43,'Intersection Tables'!M43)))/100),(IF($I$9="3ST",'Intersection Tables'!P43,(IF($I$9="4ST",+'Intersection Tables'!S43,+'Intersection Tables'!V43)))/100)) -> 1 | D45: =+L33 ->  | F45: =IF('Intersection Tables'!$D$27="No",(IF($I$9="3ST",'Intersection Tables'!E43,(IF($I$9="4ST",'Intersection Tables'!H43,'Intersection Tables'!K43)))/100),(IF($I$9="3ST",'Intersection Tables'!N43,(IF($I$9="4ST",+'Intersection Tables'!Q43,+'Intersection Tables'!T43)))/100)) -> 1 | H45: =+L34 ->  | J45: =IF('Intersection Tables'!$D$27="No",(IF($I$9="3ST",'Intersection Tables'!F43,(IF($I$9="4ST",'Intersection Tables'!I43,'Intersection Tables'!L43)))/100),(IF($I$9="3ST",'Intersection Tables'!O43,(IF($I$9="4ST",+'Intersection Tables'!R43,+'Intersection Tables'!U43)))/100)) -> 1 | L45: =+L35 -> 
D46: (2)x(3)TOTAL | H46: (4)x(5)FI | L46: (6)x(7)PDO
A47: SINGLE-VEHICLE
A48: Collision with animal | C48: =IF('Intersection Tables'!$D$27="No",(IF($I$9="3ST",'Intersection Tables'!G29,(IF($I$9="4ST",'Intersection Tables'!J29,'Intersection Tables'!M29)))/100),(IF($I$9="3ST",'Intersection Tables'!P29,(IF($I$9="4ST",+'Intersection Tables'!S29,+'Intersection Tables'!V29)))/100)) -> 0.002 | D48: =+C48*$D$45 ->  | F48: =IF('Intersection Tables'!$D$27="No",(IF($I$9="3ST",'Intersection Tables'!E29,(IF($I$9="4ST",'Intersection Tables'!H29,'Intersection Tables'!K29)))/100),(IF($I$9="3ST",'Intersection Tables'!N29,(IF($I$9="4ST",+'Intersection Tables'!Q29,+'Intersection Tables'!T29)))/100)) -> 0 | H48: =+$H$45*F48 ->  | J48: =IF('Intersection Tables'!$D$27="No",(IF($I$9="3ST",'Intersection Tables'!F29,(IF($I$9="4ST",'Intersection Tables'!I29,'Intersection Tables'!L29)))/100),(IF($I$9="3ST",'Intersection Tables'!O29,(IF($I$9="4ST",+'Intersection Tables'!R29,+'Intersection Tables'!U29)))/100)) -> 0.003 | L48: =+$L$45*J48 -> 
A49: Collision with bicycle | C49: =IF('Intersection Tables'!$D$27="No",(IF($I$9="3ST",'Intersection Tables'!G30,(IF($I$9="4ST",'Intersection Tables'!J30,'Intersection Tables'!M30)))/100),(IF($I$9="3ST",'Intersection Tables'!P30,(IF($I$9="4ST",+'Intersection Tables'!S30,+'Intersection Tables'!V30)))/100)) -> 0.001 | D49: =+C49*$D$45 ->  | F49: =IF('Intersection Tables'!$D$27="No",(IF($I$9="3ST",'Intersection Tables'!E30,(IF($I$9="4ST",'Intersection Tables'!H30,'Intersection Tables'!K30)))/100),(IF($I$9="3ST",'Intersection Tables'!N30,(IF($I$9="4ST",+'Intersection Tables'!Q30,+'Intersection Tables'!T30)))/100)) -> 0.001 | H49: =+$H$45*F49 ->  | J49: =IF('Intersection Tables'!$D$27="No",(IF($I$9="3ST",'Intersection Tables'!F30,(IF($I$9="4ST",'Intersection Tables'!I30,'Intersection Tables'!L30)))/100),(IF($I$9="3ST",'Intersection Tables'!O30,(IF($I$9="4ST",+'Intersection Tables'!R30,+'Intersection Tables'!U30)))/100)) -> 0.001 | L49: =+$L$45*J49 -> 
A50: Collision with pedestrian | C50: =IF('Intersection Tables'!$D$27="No",(IF($I$9="3ST",'Intersection Tables'!G31,(IF($I$9="4ST",'Intersection Tables'!J31,'Intersection Tables'!M31)))/100),(IF($I$9="3ST",'Intersection Tables'!P31,(IF($I$9="4ST",+'Intersection Tables'!S31,+'Intersection Tables'!V31)))/100)) -> 0.001 | F50: =IF('Intersection Tables'!$D$27="No",(IF($I$9="3ST",'Intersection Tables'!E31,(IF($I$9="4ST",'Intersection Tables'!H31,'Intersection Tables'!K31)))/100),(IF($I$9="3ST",'Intersection Tables'!N31,(IF($I$9="4ST",+'Intersection Tables'!Q31,+'Intersection Tables'!T31)))/100)) -> 0.001 | J50: =IF('Intersection Tables'!$D$27="No",(IF($I$9="3ST",'Intersection Tables'!F31,(IF($I$9="4ST",'Intersection Tables'!I31,'Intersection Tables'!L31)))/100),(IF($I$9="3ST",'Intersection Tables'!O31,(IF($I$9="4ST",+'Intersection Tables'!R31,+'Intersection Tables'!U31)))/100)) -> 0.001
A51: Overturned | C51: =IF('Intersection Tables'!$D$27="No",(IF($I$9="3ST",'Intersection Tables'!G32,(IF($I$9="4ST",'Intersection Tables'!J32,'Intersection Tables'!M32)))/100),(IF($I$9="3ST",'Intersection Tables'!P32,(IF($I$9="4ST",+'Intersection Tables'!S32,+'Intersection Tables'!V32)))/100)) -> 0.003 | F51: =IF('Intersection Tables'!$D$27="No",(IF($I$9="3ST",'Intersection Tables'!E32,(IF($I$9="4ST",'Intersection Tables'!H32,'Intersection Tables'!K32)))/100),(IF($I$9="3ST",'Intersection Tables'!N32,(IF($I$9="4ST",+'Intersection Tables'!Q32,+'Intersection Tables'!T32)))/100)) -> 0.003 | J51: =IF('Intersection Tables'!$D$27="No",(IF($I$9="3ST",'Intersection Tables'!F32,(IF($I$9="4ST",'Intersection Tables'!I32,'Intersection Tables'!L32)))/100),(IF($I$9="3ST",'Intersection Tables'!O32,(IF($I$9="4ST",+'Intersection Tables'!R32,+'Intersection Tables'!U32)))/100)) -> 0.003
A52: Ran off road | C52: =IF('Intersection Tables'!$D$27="No",(IF($I$9="3ST",'Intersection Tables'!G33,(IF($I$9="4ST",'Intersection Tables'!J33,'Intersection Tables'!M33)))/100),(IF($I$9="3ST",'Intersection Tables'!P33,(IF($I$9="4ST",+'Intersection Tables'!S33,+'Intersection Tables'!V33)))/100)) -> 0.064 | F52: =IF('Intersection Tables'!$D$27="No",(IF($I$9="3ST",'Intersection Tables'!E33,(IF($I$9="4ST",'Intersection Tables'!H33,'Intersection Tables'!K33)))/100),(IF($I$9="3ST",'Intersection Tables'!N33,(IF($I$9="4ST",+'Intersection Tables'!Q33,+'Intersection Tables'!T33)))/100)) -> 0.032 | J52: =IF('Intersection Tables'!$D$27="No",(IF($I$9="3ST",'Intersection Tables'!F33,(IF($I$9="4ST",'Intersection Tables'!I33,'Intersection Tables'!L33)))/100),(IF($I$9="3ST",'Intersection Tables'!O33,(IF($I$9="4ST",+'Intersection Tables'!R33,+'Intersection Tables'!U33)))/100)) -> 0.081
A53: Other single-vehicle collision | C53: =IF('Intersection Tables'!$D$27="No",(IF($I$9="3ST",'Intersection Tables'!G34,(IF($I$9="4ST",'Intersection Tables'!J34,'Intersection Tables'!M34)))/100),(IF($I$9="3ST",'Intersection Tables'!P34,(IF($I$9="4ST",+'Intersection Tables'!S34,+'Intersection Tables'!V34)))/100)) -> 0.005 | F53: =IF('Intersection Tables'!$D$27="No",(IF($I$9="3ST",'Intersection Tables'!E34,(IF($I$9="4ST",'Intersection Tables'!H34,'Intersection Tables'!K34)))/100),(IF($I$9="3ST",'Intersection Tables'!N34,(IF($I$9="4ST",+'Intersection Tables'!Q34,+'Intersection Tables'!T34)))/100)) -> 0.003 | J53: =IF('Intersection Tables'!$D$27="No",(IF($I$9="3ST",'Intersection Tables'!F34,(IF($I$9="4ST",'Intersection Tables'!I34,'Intersection Tables'!L34)))/100),(IF($I$9="3ST",'Intersection Tables'!O34,(IF($I$9="4ST",+'Intersection Tables'!R34,+'Intersection Tables'!U34)))/100)) -> 0.018
A54: Total single-vehicle crashes | C54: =IF('Intersection Tables'!$D$27="No",(IF($I$9="3ST",'Intersection Tables'!G35,(IF($I$9="4ST",'Intersection Tables'!J35,'Intersection Tables'!M35)))/100),(IF($I$9="3ST",'Intersection Tables'!P35,(IF($I$9="4ST",+'Intersection Tables'!S35,+'Intersection Tables'!V35)))/100)) -> 0.076 | F54: =IF('Intersection Tables'!$D$27="No",(IF($I$9="3ST",'Intersection Tables'!E35,(IF($I$9="4ST",'Intersection Tables'!H35,'Intersection Tables'!K35)))/100),(IF($I$9="3ST",'Intersection Tables'!N35,(IF($I$9="4ST",+'Intersection Tables'!Q35,+'Intersection Tables'!T35)))/100)) -> 0.04 | J54: =IF('Intersection Tables'!$D$27="No",(IF($I$9="3ST",'Intersection Tables'!F35,(IF($I$9="4ST",'Intersection Tables'!I35,'Intersection Tables'!L35)))/100),(IF($I$9="3ST",'Intersection Tables'!O35,(IF($I$9="4ST",+'Intersection Tables'!R35,+'Intersection Tables'!U35)))/100)) -> 0.107
A55: MULTIPLE-VEHICLE
A56: Angle collision | C56: =IF('Intersection Tables'!$D$27="No",(IF($I$9="3ST",'Intersection Tables'!G37,(IF($I$9="4ST",'Intersection Tables'!J37,'Intersection Tables'!M37)))/100),(IF($I$9="3ST",'Intersection Tables'!P37,(IF($I$9="4ST",+'Intersection Tables'!S37,+'Intersection Tables'!V37)))/100)) -> 0.274 | D56: =+C56*$D$45 ->  | F56: =IF('Intersection Tables'!$D$27="No",(IF($I$9="3ST",'Intersection Tables'!E37,(IF($I$9="4ST",'Intersection Tables'!H37,'Intersection Tables'!K37)))/100),(IF($I$9="3ST",'Intersection Tables'!N37,(IF($I$9="4ST",+'Intersection Tables'!Q37,+'Intersection Tables'!T37)))/100)) -> 0.336 | H56: =+$H$45*F56 ->  | J56: =IF('Intersection Tables'!$D$27="No",(IF($I$9="3ST",'Intersection Tables'!F37,(IF($I$9="4ST",'Intersection Tables'!I37,'Intersection Tables'!L37)))/100),(IF($I$9="3ST",'Intersection Tables'!O37,(IF($I$9="4ST",+'Intersection Tables'!R37,+'Intersection Tables'!U37)))/100)) -> 0.242 | L56: =+$L$45*J56 -> 
A57: Head-on collision | C57: =IF('Intersection Tables'!$D$27="No",(IF($I$9="3ST",'Intersection Tables'!G38,(IF($I$9="4ST",'Intersection Tables'!J38,'Intersection Tables'!M38)))/100),(IF($I$9="3ST",'Intersection Tables'!P38,(IF($I$9="4ST",+'Intersection Tables'!S38,+'Intersection Tables'!V38)))/100)) -> 0.054 | F57: =IF('Intersection Tables'!$D$27="No",(IF($I$9="3ST",'Intersection Tables'!E38,(IF($I$9="4ST",'Intersection Tables'!H38,'Intersection Tables'!K38)))/100),(IF($I$9="3ST",'Intersection Tables'!N38,(IF($I$9="4ST",+'Intersection Tables'!Q38,+'Intersection Tables'!T38)))/100)) -> 0.08 | J57: =IF('Intersection Tables'!$D$27="No",(IF($I$9="3ST",'Intersection Tables'!F38,(IF($I$9="4ST",'Intersection Tables'!I38,'Intersection Tables'!L38)))/100),(IF($I$9="3ST",'Intersection Tables'!O38,(IF($I$9="4ST",+'Intersection Tables'!R38,+'Intersection Tables'!U38)))/100)) -> 0.04
A58: Rear-end collision | C58: =IF('Intersection Tables'!$D$27="No",(IF($I$9="3ST",'Intersection Tables'!G39,(IF($I$9="4ST",'Intersection Tables'!J39,'Intersection Tables'!M39)))/100),(IF($I$9="3ST",'Intersection Tables'!P39,(IF($I$9="4ST",+'Intersection Tables'!S39,+'Intersection Tables'!V39)))/100)) -> 0.426 | F58: =IF('Intersection Tables'!$D$27="No",(IF($I$9="3ST",'Intersection Tables'!E39,(IF($I$9="4ST",'Intersection Tables'!H39,'Intersection Tables'!K39)))/100),(IF($I$9="3ST",'Intersection Tables'!N39,(IF($I$9="4ST",+'Intersection Tables'!Q39,+'Intersection Tables'!T39)))/100)) -> 0.403 | J58: =IF('Intersection Tables'!$D$27="No",(IF($I$9="3ST",'Intersection Tables'!F39,(IF($I$9="4ST",'Intersection Tables'!I39,'Intersection Tables'!L39)))/100),(IF($I$9="3ST",'Intersection Tables'!O39,(IF($I$9="4ST",+'Intersection Tables'!R39,+'Intersection Tables'!U39)))/100)) -> 0.438
A59: Sideswipe collision | C59: =IF('Intersection Tables'!$D$27="No",(IF($I$9="3ST",'Intersection Tables'!G40,(IF($I$9="4ST",'Intersection Tables'!J40,'Intersection Tables'!M40)))/100),(IF($I$9="3ST",'Intersection Tables'!P40,(IF($I$9="4ST",+'Intersection Tables'!S40,+'Intersection Tables'!V40)))/100)) -> 0.118 | F59: =IF('Intersection Tables'!$D$27="No",(IF($I$9="3ST",'Intersection Tables'!E40,(IF($I$9="4ST",'Intersection Tables'!H40,'Intersection Tables'!K40)))/100),(IF($I$9="3ST",'Intersection Tables'!N40,(IF($I$9="4ST",+'Intersection Tables'!Q40,+'Intersection Tables'!T40)))/100)) -> 0.051 | J59: =IF('Intersection Tables'!$D$27="No",(IF($I$9="3ST",'Intersection Tables'!F40,(IF($I$9="4ST",'Intersection Tables'!I40,'Intersection Tables'!L40)))/100),(IF($I$9="3ST",'Intersection Tables'!O40,(IF($I$9="4ST",+'Intersection Tables'!R40,+'Intersection Tables'!U40)))/100)) -> 0.153
A60: Other multiple-vehicle collision | C60: =IF('Intersection Tables'!$D$27="No",(IF($I$9="3ST",'Intersection Tables'!G41,(IF($I$9="4ST",'Intersection Tables'!J41,'Intersection Tables'!M41)))/100),(IF($I$9="3ST",'Intersection Tables'!P41,(IF($I$9="4ST",+'Intersection Tables'!S41,+'Intersection Tables'!V41)))/100)) -> 0.052 | F60: =IF('Intersection Tables'!$D$27="No",(IF($I$9="3ST",'Intersection Tables'!E41,(IF($I$9="4ST",'Intersection Tables'!H41,'Intersection Tables'!K41)))/100),(IF($I$9="3ST",'Intersection Tables'!N41,(IF($I$9="4ST",+'Intersection Tables'!Q41,+'Intersection Tables'!T41)))/100)) -> 0.09 | J60: =IF('Intersection Tables'!$D$27="No",(IF($I$9="3ST",'Intersection Tables'!F41,(IF($I$9="4ST",'Intersection Tables'!I41,'Intersection Tables'!L41)))/100),(IF($I$9="3ST",'Intersection Tables'!O41,(IF($I$9="4ST",+'Intersection Tables'!R41,+'Intersection Tables'!U41)))/100)) -> 0.02
A61: Total multiple-vehicle crashes | C61: =IF('Intersection Tables'!$D$27="No",(IF($I$9="3ST",'Intersection Tables'!G42,(IF($I$9="4ST",'Intersection Tables'!J42,'Intersection Tables'!M42)))/100),(IF($I$9="3ST",'Intersection Tables'!P42,(IF($I$9="4ST",+'Intersection Tables'!S42,+'Intersection Tables'!V42)))/100)) -> 0.924 | F61: =IF('Intersection Tables'!$D$27="No",(IF($I$9="3ST",'Intersection Tables'!E42,(IF($I$9="4ST",'Intersection Tables'!H42,'Intersection Tables'!K42)))/100),(IF($I$9="3ST",'Intersection Tables'!N42,(IF($I$9="4ST",+'Intersection Tables'!Q42,+'Intersection Tables'!T42)))/100)) -> 0.96 | J61: =IF('Intersection Tables'!$D$27="No",(IF($I$9="3ST",'Intersection Tables'!F42,(IF($I$9="4ST",'Intersection Tables'!I42,'Intersection Tables'!L42)))/100),(IF($I$9="3ST",'Intersection Tables'!O42,(IF($I$9="4ST",+'Intersection Tables'!R42,+'Intersection Tables'!U42)))/100)) -> 0.893
A64: Worksheet 2E -- Summary Results for Rural Two-Lane Two-Way Road Intersections
A65: (1) | E65: (2) | I65: (3)
A66: Crash severity level | E66: Crash Severity Distribution (proportion) | I66: Predicted average crash frequency (crashes / year)
E67: (4) from Worksheet 2C | I67: (8) from Worksheet 2C
A68: Total | E68: =+F33 -> 1 | I68: =+L33 -> 
A69: Fatal and Injury (FI) | E69: =+F34 -> 0.34 | I69: =+L34 -> 
A70: Property Damage Only (PDO) | E70: =+F35 -> 0.66 | I70: =+L35 -> 

Sheet Intersection Tables
B2: Tables Affiliated with Crash Statistics: | Y2: Tables Affiliated with Crash Modification Factors:
B5: Table 10-5: Default Distribution for Crash Severity Level at Rural Two-Lane Two-Way Intersections plus Locally-Derived Values | Y5: Table 10-13: CMF for Installation of Left-Turn Lanes on Intersection Approaches (CMF2i)
B7: Collision type | E7: Percentage of total crashes | Y7: Intersection type | AA7: Intersection traffic control | AC7: Number of approaches with left-turn lanes a
E8: HSM-Provided Values | K8: Locally-Derived Values
E9: 3ST | G9: 4ST | I9: 4SG | K9: 3ST | M9: 4ST | O9: 4SG | AC9: 1 | AD9: 2 | AE9: 3 | AF9: 4
B10: Locally-Derived Values? | D10: No
Y11: Three-leg intersection | AA11: Minor road stop control b | AC11: 0.56 | AD11: 0.31 | AE11: 0.31 | AF11: 0.31
B12: Fatal | E12: 1.7 | G12: 1.8 | I12: 0.9 | K12: 4 | M12: 17
B13: Incapacitating injury | E13: 4 | G13: 4.3 | I13: 2.1 | Y13: Four-leg intersection | AA13: Minor road stop control b | AC13: 0.72 | AD13: 0.52 | AE13: 0.52 | AF13: 0.52
B14: Nonincapacitating injury | E14: 16.6 | G14: 16.2 | I14: 10.5
B15: Possible injury | E15: 19.2 | G15: 20.8 | I15: 20.5 | AA15: Traffic signal | AC15: 0.82 | AD15: 0.67 | AE15: 0.55 | AF15: 0.45
B16: Total fatal plus injury | E16: =SUM(E12:E15) -> 41.5 | G16: =SUM(G12:G15) -> 43.1 | I16: =SUM(I12:I15) -> 34 | K16: =SUM(K12:K15) -> 4 | M16: =SUM(M12:M15) -> 17 | O16: =SUM(O12:O15) -> 0 | Y16: Note: | Z16: a Stop-controlled approaches are not considered in determining the number of approaches with left-turn lanes
B17: Property damage only | E17: =100-E16 -> 58.5 | G17: =100-G16 -> 56.9 | I17: =100-I16 -> 66 | K17: =100-K16 -> 96 | M17: =100-M16 -> 83 | O17: =100-O16 -> 100
B18: TOTAL | E18: =SUM(E16:E17) -> 100 | G18: =SUM(G16:G17) -> 100 | I18: =SUM(I16:I17) -> 100 | K18: =SUM(K16:K17) -> 100 | M18: =SUM(M16:M17) -> 100 | O18: =SUM(O16:O17) -> 100 | Z18: b Stop signs present on minor road approaches only.
B19: Note: HSM-Provided values based on HSIS data for California (2002-2006)
B21: Table 10-6: Default Distribution for Collision Type and Manner of Collision at Rural Two-Way Intersections plus Locally-Derived Values | Y21: Table 10-14: CMF for Installation of Right-Turn Lanes on Intersection Approaches (CMF3i)
B23: Collision type | E23: Percentage of total crashes by collision type ( HSM Default Values) | N23: Percentage of total crashes by collision type (Locally Derived Values) | Y23: Intersection type | AA23: Intersection traffic control | AC23: Number of approaches with left-turn lanes a
E24: Three-leg stop-controlled intersections | H24: Four-leg stop-controlled intersections | K24: Four-leg signalized intersections | N24: Three-leg stop-controlled intersections | Q24: Four-leg stop-controlled intersections | T24: Four-leg signalized intersections
AC25: 1 | AD25: 2 | AE25: 3 | AF25: 4
E26: Fatal and Injury | F26: Property damage only | G26: Total | H26: Fatal and injury | I26: Property damage only | J26: Total | K26: Fatal and injury | L26: Property damage only | M26: Total | N26: Fatal and Injury | O26: Property damage only | P26: Total | Q26: Fatal and injury | R26: Property damage only | S26: Total | T26: Fatal and injury | U26: Property damage only | V26: Total
B27: Locally-Derived Values? | D27: No | Y27: Three-leg intersection | AA27: Minor road stop control b | AC27: 0.86 | AD27: 0.74 | AE27: 0.74 | AF27: 0.74
B28: SINGLE-VEHICLE CRASHES | N28: SINGLE-VEHICLE CRASHES
B29: Collision with animal | E29: 0.8 | F29: 2.6 | G29: 1.9 | H29: 0.6 | I29: 1.4 | J29: 1 | K29: 0 | L29: 0.3 | M29: 0.2 | P29: 1 | S29: 1 | V29: 1 | Y29: Four-leg intersection | AA29: Minor road stop control b | AC29: 0.86 | AD29: 0.74 | AE29: 0.74 | AF29: 0.74
B30: Collision with bicycle | E30: 0.1 | F30: 0.1 | G30: 0.1 | H30: 0.1 | I30: 0.1 | J30: 0.1 | K30: 0.1 | L30: 0.1 | M30: 0.1 | P30: 0.1 | S30: 0.1 | V30: 0.1
B31: Collision with pedestrian | E31: 0.1 | F31: 0.1 | G31: 0.1 | H31: 0.1 | I31: 0.1 | J31: 0.1 | K31: 0.1 | L31: 0.1 | M31: 0.1 | P31: 0.2 | S31: 0.2 | V31: 0.2 | AA31: Traffic signal | AC31: 0.96 | AD31: 0.92 | AE31: 0.88 | AF31: 0.85
B32: Overturned | E32: 2.2 | F32: 0.7 | G32: 1.3 | H32: 0.6 | I32: 0.4 | J32: 0.5 | K32: 0.3 | L32: 0.3 | M32: 0.3 | P32: 0.3 | S32: 0.3 | V32: 0.3 | Y32: Note: | Z32: a Stop-controlled approaches are not considered in determining the number of approaches with right-turn lanes
B33: Ran off road | E33: 24 | F33: 24.7 | G33: 24.4 | H33: 9.4 | I33: 14.4 | J33: 12.2 | K33: 3.2 | L33: 8.1 | M33: 6.4 | P33: 11 | S33: 11 | V33: 11
B34: Other single-vehicle crash | E34: 1.1 | F34: 2 | G34: 1.6 | H34: 0.4 | I34: 1 | J34: 0.8 | K34: 0.3 | L34: 1.8 | M34: 0.5 | P34: 1.7 | S34: 1.7 | V34: 1.7 | Z34: b Stop signs present on minor road approaches only.
B35: Total single-vehicle crashes | E35: =SUM(E29:E34) -> 28.3 | F35: 30.2 | G35: 29.4 | H35: 11.2 | I35: 17.4 | J35: 14.7 | K35: 4 | L35: 10.7 | M35: 7.6 | N35: 0 | O35: 0 | P35: 14.3 | Q35: 0 | R35: 0 | S35: 14.3 | T35: 0 | U35: 0 | V35: 14.3
B36: MULTIPLE-VEHICLE CRASHES | N36: MULTIPLE-VEHICLE CRASHES
B37: Angle collision | E37: 27.5 | F37: 21 | G37: 23.7 | H37: 53.2 | I37: 35.4 | J37: 43.1 | K37: 33.6 | L37: 24.2 | M37: 27.4 | P37: 43 | S37: 43 | V37: 43
B38: Head-on collision | E38: 8.1 | F38: 3.2 | G38: 5.2 | H38: 6 | I38: 2.5 | J38: 4 | K38: 8 | L38: 4 | M38: 5.4 | P38: 7.7 | S38: 7.7 | V38: 7.7
B39: Rear-end collision | E39: 26 | F39: 29.2 | G39: 27.8 | H39: 21 | I39: 26.6 | J39: 24.2 | K39: 40.3 | L39: 43.8 | M39: 42.6 | P39: 23 | S39: 23 | V39: 23
B40: Sideswipe collision | E40: 5.1 | F40: 13.1 | G40: 9.7 | H40: 4.4 | I40: 14.4 | J40: 10.1 | K40: 5.1 | L40: 15.3 | M40: 11.8 | P40: 9 | S40: 9 | V40: 9
B41: Other multiple-vehicle collision | E41: 5 | F41: 3.3 | G41: 4.2 | H41: 4.2 | I41: 3.7 | J41: 3.9 | K41: 9 | L41: 2 | M41: 5.2 | P41: 3 | S41: 3 | V41: 3
B42: Total multiple-vehicle crashes | E42: =SUM(E37:E41) -> 71.7 | F42: 69.8 | G42: 70.6 | H42: 88.8 | I42: 82.6 | J42: 85.3 | K42: 96 | L42: 89.3 | M42: 92.4 | N42: 0 | O42: 0 | P42: 85.7 | Q42: 0 | R42: 0 | S42: 85.7 | T42: 0 | U42: 0 | V42: 85.7
B43: TOTAL CRASHES | E43: =+E35+E42 -> 100 | F43: 100 | G43: 100 | H43: 100 | I43: 100 | J43: 100 | K43: 100 | L43: 100 | M43: 100 | N43: 0 | O43: 0 | P43: 100 | Q43: 0 | R43: 0 | S43: 100 | T43: 0 | U43: 0 | V43: 100
B44: Note: HSM-Provided values based on HSIS data for California (2002-2006)
B46: Table 10-15: Nighttime Crash Proportions for Unlighted Intersections
B48: Intersection Type | E48: Proportion of crashes that occur at night, pni
B49: Locally-Derived Values? | D49: No | E49: HSM Provided Values | G49: Locally-Derived Values
B50: 3ST | E50: 0.26 | G50: 0.3
B51: 4ST | E51: 0.244 | G51: 0.3
B52: 4SG | E52: 0.286 | G52: 0.3
B53: Note: HSM-Provided values based on HSIS data for California (2002-2006)

Sheet Rural 2-Lane Site Total
B3: Worksheet 3A -- Predicted and Observed Crashes by Severity and Site Type Using the Site-Specific EB Method
B5: (1) | D5: (2) | E5: (3) | F5: (4) | G5: (5) | H5: (6) | I5: (7) | J5: (8)
B6: Site type | D6: Predicted average crash frequency (crashes/year) | G6: Observed crashes, Nobserved (crashes/year) | H6: Overdispersion Parameter, k | I6: Weighted adjustment, w | J6: Expected average crash frequency, Nexpected
D9: N predicted (TOTAL) | E9: N predicted (FI) | F9: N predicted (PDO) | I9: Equation A-5 from Part C Appendix | J9: Equation A-4 from Part C Appendix
B12: ROADWAY SEGMENTS | L12: Ne / Np
B13: Segment1 | D13: =+Segment1!G83 ->  | E13: =+Segment1!G84 ->  | F13: =+Segment1!G85 ->  | H13: =+Segment1!D49 ->  | I13: =1/(1+H13*D13) ->  | J13: =+I13*+D13+((1-I13)*G13) ->  | L13: =J13/D13 -> 
B14: Segment2 | D14: =+Segment2!G83 ->  | E14: =+Segment2!G84 ->  | F14: =+Segment2!G85 ->  | H14: =+Segment2!D49 ->  | I14: =1/(1+H14*D14) ->  | J14: =+I14*+D14+((1-I14)*G14) -> 
B15: Segment3 | I15: =1/(1+H15*D15) -> 1 | J15: =+I15*+D15+((1-I15)*G15) -> 0
B16: Segment4 | I16: 1 | J16: 0
B17: Segment5 | I17: 1 | J17: 0
B18: Segment6 | I18: 1 | J18: 0
B19: Segment7 | I19: 1 | J19: 0
B20: Segment8 | I20: 1 | J20: 0
B21: INTERSECTIONS
B22: Intersection1 | D22: =+Intersection1!I68 ->  | E22: =+Intersection1!I69 ->  | F22: =+Intersection1!I70 ->  | H22: =+Intersection1!E33 -> 0.11 | I22: =1/(1+H22*D22) ->  | J22: =+I22*+D22+((1-I22)*G22) -> 
B23: Intersection2 | D23: =+Intersection2!I68 ->  | E23: =+Intersection2!I69 ->  | F23: =+Intersection2!I70 ->  | H23: =+Intersection2!E33 -> 0.11 | I23: =1/(1+H23*D23) ->  | J23: =+I23*+D23+((1-I23)*G23) -> 
B24: Intersection3 | I24: =1/(1+H24*D24) -> 1 | J24: =+I24*+D24+((1-I24)*G24) -> 0
B25: Intersection4 | I25: 1 | J25: 0
B26: Intersection5 | I26: 1 | J26: 0
B27: Intersection6 | I27: 1 | J27: 0
B28: Intersection7 | I28: 1 | J28: 0
B29: Intersection8 | I29: 1 | J29: 0
B30: COMBINED (sum of column) | D30: =SUM(D13:D20)+SUM(D22:D29) ->  | E30: =SUM(E13:E20)+SUM(E22:E29) ->  | F30: =SUM(F13:F20)+SUM(F22:F29) ->  | G30: =SUM(G13:G20)+SUM(G22:G29) -> 0 | H30: -- | I30: -- | J30: =SUM(J13:J20)+SUM(J22:J29) -> 
B34: Worksheet 3B -- Site-Specific EB Method Summary Results
B36: (1) | E36: (2) | H36: (3)
B37: Crash severity level | E37: N predicted | H37: N expected
B38: Total | E38: (2)COMB from Worksheet 3A | H38: (8)COMB from Worksheet 3A
E39: =+D30 ->  | H39: =+J30 -> 
B40: Fatal and Injury (FI) | E40: (3)COMB from Worksheet 3A | H40: (3)TOTAL * (2)FI / (2) TOTAL
E41: =+E30 ->  | H41: =+J30*E30/D30 -> 
B42: Property Damage Only (PDO) | E42: (4)COMB from Worksheet 3A | H42: (3)TOTAL * (2)PDO / (2) TOTAL
E43: =+F30 ->  | H43: =+J30*F30/D30 -> 

Sheet Rural 2-Lane Project Total
B3: Worksheet 4A -- Predicted and Observed Crashes by Severity and Site Type Using the Project-Level EB Method
B5: (1) | D5: (2) | E5: (3) | F5: (4) | G5: (5) | H5: (6) | I5: (7) | J5: (8) | K5: (9) | L5: (10) | M5: (11) | N5: (12) | O5: (13)
B6: Site type | D6: Predicted average crash frequency (crashes/year) | G6: Observed crashes, Nobserved (crashes/year) | H6: Overdispersion Parameter, k | I6: Nw0 | J6: Nw1 | K6: W0 | L6: N0 | M6: w1 | N6: N1 | O6: Np/comb
D8: N predicted (TOTAL) | E8: N predicted (FI) | F8: N predicted (PDO) | I8: Equation A-8 (6)*(2)2 | J8: Equation A-9 sqrt((6)*(2)) | K8: Equation A-10 | L8: Equation A-11 | M8: Equation A-12 | N8: Equation A-13 | O8: Equation A-14
B10: ROADWAY SEGMENTS
B11: Segment 1 | D11: =+Segment1!$G$83 ->  | E11: =+Segment1!$G$84 ->  | F11: =+Segment1!$G$85 ->  | G11: -- | H11: =+Segment1!$D$49 ->  | I11: =+H11*D11*D11 ->  | J11: =SQRT(H11*D11) ->  | K11: -- | L11: -- | M11: -- | N11: -- | O11: --
B12: Segment 2 | D12: =+Segment2!$G$83 ->  | E12: =+Segment2!$G$84 ->  | F12: =+Segment2!$G$85 ->  | G12: -- | H12: =+Segment2!$D$49 ->  | I12: =+H12*D12*D12 ->  | J12: =SQRT(H12*D12) ->  | K12: -- | L12: -- | M12: -- | N12: -- | O12: --
B13: Segment 3 | G13: -- | K13: -- | L13: -- | M13: -- | N13: -- | O13: --
B14: Segment 4 | G14: -- | K14: -- | L14: -- | M14: -- | N14: -- | O14: --
B15: Segment 5 | G15: -- | K15: -- | L15: -- | M15: -- | N15: -- | O15: --
B16: Segment 6 | G16: -- | K16: -- | L16: -- | M16: -- | N16: -- | O16: --
B17: Segment 7 | G17: -- | K17: -- | L17: -- | M17: -- | N17: -- | O17: --
B18: Segment 8 | G18: -- | K18: -- | L18: -- | M18: -- | N18: -- | O18: --
B19: INTERSECTIONS
B20: Intersection 1 | D20: =+Intersection1!$I$68 ->  | E20: =+Intersection1!$I$69 ->  | F20: =+Intersection1!$I$70 ->  | G20: -- | H20: =+Intersection1!$E$33 -> 0.11 | I20: =H20*D20*D20 ->  | J20: =SQRT(H20*D20) ->  | K20: -- | L20: -- | M20: -- | N20: -- | O20: --
B21: Intersection 2 | D21: =+Intersection2!$I$68 ->  | E21: =+Intersection2!$I$69 ->  | F21: =+Intersection2!$I$70 ->  | G21: -- | H21: =+Intersection2!$E$33 -> 0.11 | I21: =H21*D21*D21 ->  | J21: =SQRT(H21*D21) ->  | K21: -- | L21: -- | M21: -- | N21: -- | O21: --
B22: Intersection 3 | G22: -- | K22: -- | L22: -- | M22: -- | N22: -- | O22: --
B23: Intersection 4 | G23: -- | K23: -- | L23: -- | M23: -- | N23: -- | O23: --
B24: Intersection 5 | G24: -- | K24: -- | L24: -- | M24: -- | N24: -- | O24: --
B25: Intersection 6 | G25: -- | K25: -- | L25: -- | M25: -- | N25: -- | O25: --
B26: Intersection 7 | G26: -- | K26: -- | L26: -- | M26: -- | N26: -- | O26: --
B27: Intersection 8 | G27: -- | K27: -- | L27: -- | M27: -- | N27: -- | O27: --
B28: COMBINED | D28: =SUM(D11:D18)+SUM(D20:D27) ->  | E28: =SUM(E11:E18)+SUM(E20:E27) ->  | F28: =SUM(F11:F18)+SUM(F20:F27) ->  | H28: -- | I28: =SUM(I11:I18)+SUM(I20:I27) ->  | J28: =SUM(J11:J18)+SUM(J20:J27) ->  | K28: =1/(1+I28/D28) ->  | L28: =K28*D28+((1-K28)*G28) ->  | M28: =1/(1+(J28/D28)) ->  | N28: =+M28*D28+(1-M28)*G28 ->  | O28: =(L28+N28)/2 -> 
B34: Worksheet 4B -- Project-Level EB Method Summary Results
B36: (1) | E36: (2) | H36: (3)
B37: Crash severity level | E37: N predicted | H37: N expected
B38: Total | E38: (2)COMB from Worksheet 4A | H38: (13)COMB from Worksheet 4A
E39: =+D28 ->  | H39: =+O28 -> 
B40: Fatal and injury (FI) | E40: (3)COMB from Worksheet 4A | H40: (3)TOTAL * (2)FI / (2) TOTAL
E41: =+E28 ->  | H41: =+O28*E28/D28 -> 
B42: Property damage only (PDO) | E42: (4)COMB from Worksheet 4A | H42: (3)TOTAL * (2)PDO / (2) TOTAL
E43: =+F28 ->  | H43: =+O28*F28/D28 -> 

Sheet Construction - Do Not Delete (hidden)
B3: Lane Width | D3: Shoulder Width | F3: RHR
B4: 9 | D4: 0 | F4: 1
B5: 9.5 | D5: 1 | F5: 2
B6: 10 | D6: 2 | F6: 3
B7: 10.5 | D7: 3 | F7: 4
B8: 11 | D8: 4 | F8: 5
B9: 11.5 | D9: 5 | F9: 6
B10: 12 | D10: 6 | F10: 7
D11: 7
D12: 8
H15: Centerline | J15: Passing | L15: Local
D16: Shoulder Type | F16: Spiral | H16: Rumble Strips | J16: Lane | L16: Yes
D17: Paved | F17: Not Present | H17: Not Present | J17: Not Present | L17: No
D18: Gravel | F18: Present | H18: Present | J18: Present (1 lane)
D19: Composite | F19: One End Only | J19: Present (2 lanes)
D20: Turf
F22: TWLTL | H22: Lighting | J22: SpEnforce
F23: Not Present | H23: Not Present | J23: Not Present
F24: Present | H24: Present | J24: Present
D28: Itype | F28: Lapproach | H28: Rapproach | J28: Ilight | L28: Differ
D29: 3ST | F29: 0 | H29: 0 | J29: Not Present | L29: Yes
D30: 4ST | F30: 1 | H30: 1 | J30: Present | L30: No
D31: 4SG | F31: 2 | H31: 2
F32: 3 | H32: 3
F33: 4 | H33: 4
D36: Mwidth | F36: Division | H36: Sslope | J36: Shld2 | L36: Iapproach
D37: 10 | F37: Divided | H37: 1:2 or Steeper | J37: 0 | L37: 0
D38: 20 | F38: Undivided | H38: 1:4 | J38: 1 | L38: 1
D39: 30 | H39: 1:5 | J39: 2 | L39: 2
D40: 40 | H40: 1:6 | J40: 3
D41: 50 | H41: 1:7 or Flatter | J41: 4
D42: 60 | J42: 5
D43: 70 | J43: 6
D44: 80 | J44: 7
D45: 90 | J45: 8
D46: 100 | J46: 9
J47: 10

Sheet Segment1 Crash Cost
B2: State of Florida Department of Transportation
B3: Present Worth Analysis
B4: Rural Two Lane Road
B5: =IF(A_Type="P","Build Alternative","No-Build Alternative") -> No-Build Alternative
B6: General Information | K6: Site Information
B7: Analyst: | E7: Date: | K7: Location ID: | O7: County:
B8: Agency or Company: | K8: City: | O8: M.P. - M.P.
B9: Manual Input from Analysis
C10: Growth Rate = | E10: Current Year = | F10: =INDIRECT("'" & SegName & "'!J7") -> 0 | H10: Project Opening Year = | K10: Default Distribution for Crash Severity Level (2010-2014 Florida HSM Crash Distribution)
C11: Current Year AADT = | D11: =INDIRECT("'" & SegName & "'!AADT") -> 0 | E11: Rate of Return = | H11: Analysis Period = | L11: Fatality = | M11: 0.032 | P11: Possible Injury = | Q11: 0.195
C12: Segment Length = | D12: =INDIRECT("'" & SegName & "'!Segment_Length") -> 0 | E12: Segment = | F12: Segment1 | H12: E | L12: Incapacitating = | M12: 0.116 | P12: Property Damage Only = | Q12: 0.461
E13: Crash Data Used = | F13: Yes | H13: 1.181758728 | L13: Non-Incapacitating = | M13: 0.196 | Q13: =SUM(M11:M13,Q11:Q12) -> 1
C15: Year | E15: Annual Number of Crashes | K15: Annual Cost
E16: Site Specific (Npredicted / expected) | F16: Fatality | G16: Incap. | H16: Non-Inc. | I16: Possible Injury | J16: PDO | K16: Fatality | L16: Incap. | M16: Non-Inc. | N16: Possible Injury | O16: PDO | P16: Total Cost | Q16: Present Value
C17: =F10 -> 0 | D17: =D11 -> 0 | F17: =E17*$M$11 -> 0 | G17: =E17*$M$12 -> 0 | H17: =E17*$M$13 -> 0 | I17: =E17*$Q$11 -> 0 | J17: =E17*$Q$12 -> 0 | K17: =F17*Data!$B$2 -> 0 | L17: =G17*Data!$B$3 -> 0 | M17: =H17*Data!$B$4 -> 0 | N17: =I17*Data!$B$5 -> 0 | O17: =J17*Data!$B$6 -> 0 | P17: =SUM(K17:O17) -> 0 | Q17: =(P17)/((1+$F$11)^(B17)) -> 0
C18: =C17+1 -> 1 | D18: =D17*(1+$D$10) -> 0 | F18: 0 | G18: 0 | H18: 0 | I18: 0 | J18: 0 | K18: =F18*Data!$B$2 -> 0 | L18: =G18*Data!$B$3 -> 0 | M18: =H18*Data!$B$4 -> 0 | N18: =I18*Data!$B$5 -> 0 | O18: =J18*Data!$B$6 -> 0 | P18: =SUM(K18:O18) -> 0 | Q18: 0
C19: =C18+1 -> 2 | D19: 0 | F19: 0 | G19: 0 | H19: 0 | I19: 0 | J19: 0 | K19: =F19*Data!$B$2 -> 0 | L19: =G19*Data!$B$3 -> 0 | M19: =H19*Data!$B$4 -> 0 | N19: =I19*Data!$B$5 -> 0 | O19: =J19*Data!$B$6 -> 0 | P19: 0 | Q19: 0
C20: 3 | D20: 0 | F20: 0 | G20: 0 | H20: 0 | I20: 0 | J20: 0 | K20: =F20*Data!$B$2 -> 0 | L20: =G20*Data!$B$3 -> 0 | M20: =H20*Data!$B$4 -> 0 | N20: =I20*Data!$B$5 -> 0 | O20: =J20*Data!$B$6 -> 0 | P20: 0 | Q20: 0
C21: 4 | D21: 0 | F21: 0 | G21: 0 | H21: 0 | I21: 0 | J21: 0 | K21: =F21*Data!$B$2 -> 0 | L21: =G21*Data!$B$3 -> 0 | M21: =H21*Data!$B$4 -> 0 | N21: =I21*Data!$B$5 -> 0 | O21: =J21*Data!$B$6 -> 0 | P21: 0 | Q21: 0
C22: 5 | D22: 0 | F22: 0 | G22: 0 | H22: 0 | I22: 0 | J22: 0 | K22: =F22*Data!$B$2 -> 0 | L22: =G22*Data!$B$3 -> 0 | M22: =H22*Data!$B$4 -> 0 | N22: =I22*Data!$B$5 -> 0 | O22: =J22*Data!$B$6 -> 0 | P22: 0 | Q22: 0
C23: 6 | D23: 0 | F23: 0 | G23: 0 | H23: 0 | I23: 0 | J23: 0 | K23: =F23*Data!$B$2 -> 0 | L23: =G23*Data!$B$3 -> 0 | M23: =H23*Data!$B$4 -> 0 | N23: =I23*Data!$B$5 -> 0 | O23: =J23*Data!$B$6 -> 0 | P23: 0 | Q23: 0
C24: 7 | D24: 0 | F24: 0 | G24: 0 | H24: 0 | I24: 0 | J24: 0 | K24: =F24*Data!$B$2 -> 0 | L24: =G24*Data!$B$3 -> 0 | M24: =H24*Data!$B$4 -> 0 | N24: =I24*Data!$B$5 -> 0 | O24: =J24*Data!$B$6 -> 0 | P24: 0 | Q24: 0
C25: 8 | D25: 0 | F25: 0 | G25: 0 | H25: 0 | I25: 0 | J25: 0 | K25: =F25*Data!$B$2 -> 0 | L25: =G25*Data!$B$3 -> 0 | M25: =H25*Data!$B$4 -> 0 | N25: =I25*Data!$B$5 -> 0 | O25: =J25*Data!$B$6 -> 0 | P25: 0 | Q25: 0
C26: 9 | D26: 0 | F26: 0 | G26: 0 | H26: 0 | I26: 0 | J26: 0 | K26: =F26*Data!$B$2 -> 0 | L26: =G26*Data!$B$3 -> 0 | M26: =H26*Data!$B$4 -> 0 | N26: =I26*Data!$B$5 -> 0 | O26: =J26*Data!$B$6 -> 0 | P26: 0 | Q26: 0
C27: 10 | D27: 0 | F27: =E27*$M$11 -> 0 | G27: =E27*$M$12 -> 0 | H27: =E27*$M$13 -> 0 | I27: =E27*$Q$11 -> 0 | J27: =E27*$Q$12 -> 0 | K27: =F27*Data!$B$2 -> 0 | L27: =G27*Data!$B$3 -> 0 | M27: =H27*Data!$B$4 -> 0 | N27: =I27*Data!$B$5 -> 0 | O27: =J27*Data!$B$6 -> 0 | P27: 0 | Q27: 0
C28: 11 | D28: 0 | F28: =E28*$M$11 -> 0 | G28: =E28*$M$12 -> 0 | H28: =E28*$M$13 -> 0 | I28: =E28*$Q$11 -> 0 | J28: =E28*$Q$12 -> 0 | K28: =F28*Data!$B$2 -> 0 | L28: =G28*Data!$B$3 -> 0 | M28: =H28*Data!$B$4 -> 0 | N28: =I28*Data!$B$5 -> 0 | O28: =J28*Data!$B$6 -> 0 | P28: =SUM(K28:O28) -> 0 | Q28: =(P28)/((1+$F$11)^(B28)) -> 0
C29: 12 | D29: 0 | F29: 0 | G29: 0 | H29: 0 | I29: 0 | J29: 0 | K29: =F29*Data!$B$2 -> 0 | L29: =G29*Data!$B$3 -> 0 | M29: =H29*Data!$B$4 -> 0 | N29: =I29*Data!$B$5 -> 0 | O29: =J29*Data!$B$6 -> 0 | P29: 0 | Q29: 0
C30: 13 | D30: 0 | F30: 0 | G30: 0 | H30: 0 | I30: 0 | J30: 0 | K30: =F30*Data!$B$2 -> 0 | L30: =G30*Data!$B$3 -> 0 | M30: =H30*Data!$B$4 -> 0 | N30: =I30*Data!$B$5 -> 0 | O30: =J30*Data!$B$6 -> 0 | P30: 0 | Q30: 0
C31: 14 | D31: 0 | F31: 0 | G31: 0 | H31: 0 | I31: 0 | J31: 0 | K31: =F31*Data!$B$2 -> 0 | L31: =G31*Data!$B$3 -> 0 | M31: =H31*Data!$B$4 -> 0 | N31: =I31*Data!$B$5 -> 0 | O31: =J31*Data!$B$6 -> 0 | P31: 0 | Q31: 0
C32: 15 | D32: 0 | F32: 0 | G32: 0 | H32: 0 | I32: 0 | J32: 0 | K32: =F32*Data!$B$2 -> 0 | L32: =G32*Data!$B$3 -> 0 | M32: =H32*Data!$B$4 -> 0 | N32: =I32*Data!$B$5 -> 0 | O32: =J32*Data!$B$6 -> 0 | P32: 0 | Q32: 0
C33: 16 | D33: 0 | F33: 0 | G33: 0 | H33: 0 | I33: 0 | J33: 0 | K33: =F33*Data!$B$2 -> 0 | L33: =G33*Data!$B$3 -> 0 | M33: =H33*Data!$B$4 -> 0 | N33: =I33*Data!$B$5 -> 0 | O33: =J33*Data!$B$6 -> 0 | P33: 0 | Q33: 0
C34: 17 | D34: 0 | F34: 0 | G34: 0 | H34: 0 | I34: 0 | J34: 0 | K34: =F34*Data!$B$2 -> 0 | L34: =G34*Data!$B$3 -> 0 | M34: =H34*Data!$B$4 -> 0 | N34: =I34*Data!$B$5 -> 0 | O34: =J34*Data!$B$6 -> 0 | P34: 0 | Q34: 0
C35: 18 | D35: 0 | F35: 0 | G35: 0 | H35: 0 | I35: 0 | J35: 0 | K35: =F35*Data!$B$2 -> 0 | L35: =G35*Data!$B$3 -> 0 | M35: =H35*Data!$B$4 -> 0 | N35: =I35*Data!$B$5 -> 0 | O35: =J35*Data!$B$6 -> 0 | P35: 0 | Q35: 0
C36: 19 | D36: 0 | F36: 0 | G36: 0 | H36: 0 | I36: 0 | J36: 0 | K36: =F36*Data!$B$2 -> 0 | L36: =G36*Data!$B$3 -> 0 | M36: =H36*Data!$B$4 -> 0 | N36: =I36*Data!$B$5 -> 0 | O36: =J36*Data!$B$6 -> 0 | P36: 0 | Q36: 0
C37: 20 | D37: 0 | F37: 0 | G37: 0 | H37: 0 | I37: 0 | J37: 0 | K37: =F37*Data!$B$2 -> 0 | L37: =G37*Data!$B$3 -> 0 | M37: =H37*Data!$B$4 -> 0 | N37: =I37*Data!$B$5 -> 0 | O37: =J37*Data!$B$6 -> 0 | P37: 0 | Q37: 0
C38: 21 | D38: 0 | F38: 0 | G38: 0 | H38: 0 | I38: 0 | J38: 0 | K38: =F38*Data!$B$2 -> 0 | L38: =G38*Data!$B$3 -> 0 | M38: =H38*Data!$B$4 -> 0 | N38: =I38*Data!$B$5 -> 0 | O38: =J38*Data!$B$6 -> 0 | P38: 0 | Q38: 0
C39: 22 | D39: 0 | F39: 0 | G39: 0 | H39: 0 | I39: 0 | J39: 0 | K39: =F39*Data!$B$2 -> 0 | L39: =G39*Data!$B$3 -> 0 | M39: =H39*Data!$B$4 -> 0 | N39: =I39*Data!$B$5 -> 0 | O39: =J39*Data!$B$6 -> 0 | P39: 0 | Q39: 0
C40: 23 | D40: 0 | F40: 0 | G40: 0 | H40: 0 | I40: 0 | J40: 0 | K40: =F40*Data!$B$2 -> 0 | L40: =G40*Data!$B$3 -> 0 | M40: =H40*Data!$B$4 -> 0 | N40: =I40*Data!$B$5 -> 0 | O40: =J40*Data!$B$6 -> 0 | P40: 0 | Q40: 0
C41: 24 | D41: 0 | F41: 0 | G41: 0 | H41: 0 | I41: 0 | J41: 0 | K41: =F41*Data!$B$2 -> 0 | L41: =G41*Data!$B$3 -> 0 | M41: =H41*Data!$B$4 -> 0 | N41: =I41*Data!$B$5 -> 0 | O41: =J41*Data!$B$6 -> 0 | P41: 0 | Q41: 0
C42: 25 | D42: 0 | F42: 0 | G42: 0 | H42: 0 | I42: 0 | J42: 0 | K42: =F42*Data!$B$2 -> 0 | L42: =G42*Data!$B$3 -> 0 | M42: =H42*Data!$B$4 -> 0 | N42: =I42*Data!$B$5 -> 0 | O42: =J42*Data!$B$6 -> 0 | P42: 0 | Q42: 0
C43: 26 | D43: 0 | F43: 0 | G43: 0 | H43: 0 | I43: 0 | J43: 0 | K43: =F43*Data!$B$2 -> 0 | L43: =G43*Data!$B$3 -> 0 | M43: =H43*Data!$B$4 -> 0 | N43: =I43*Data!$B$5 -> 0 | O43: =J43*Data!$B$6 -> 0 | P43: 0 | Q43: 0
C44: Shaded cell indicates the AADT is outside the limits | P44: Total Present Value | Q44: =SUM(Q17:Q43) -> 0
C47: NOTES:
C48: 1. Present Value = Future Cash Flow / (1 + Required Rate of Return)Number of Years You Have To Wait For The Cash Flow
C49: 2. Traffic Growth Rate = [((ADTf / ADTi)(1/(F-I))-1] x 100
C50: where ADTf = Average Daily Traffic for Future Year
C51: ADTi = Average Daily Traffic for Initial Year
C52: I = Initial Year for ADT
C53: F = Future Year for ADT

Sheet Segment2 Crash Cost
B2: State of Florida Department of Transportation
B3: Present Worth Analysis
B4: Rural Two Lane Road
B5: =IF(A_Type="P","Build Alternative","No-Build Alternative") -> Build Alternative
B6: General Information | K6: Site Information
B7: Analyst: | E7: Date: | K7: Location ID: | O7: County:
B8: Agency or Company: | K8: City: | O8: M.P. - M.P.
B9: Manual Input from Analysis
C10: Growth Rate = | E10: Current Year = | F10: =INDIRECT("'" & SegName & "'!J7") -> 0 | H10: Project Opening Year = | K10: Default Distribution for Crash Severity Level (2010-2014 Florida HSM Crash Distribution)
C11: Current Year AADT = | D11: =INDIRECT("'" & SegName & "'!AADT") -> 0 | E11: Rate of Return = | H11: Analysis Period = | L11: Fatality = | M11: 0.032 | P11: Possible Injury = | Q11: 0.195
C12: Segment Length = | D12: =INDIRECT("'" & SegName & "'!Segment_Length") -> 0 | E12: Segment = | F12: Segment2 | H12: P | L12: Incapacitating = | M12: 0.116 | P12: Property Damage Only = | Q12: 0.461
E13: Crash Data Used = | F13: Yes | H13: 0.125 | L13: Non-Incapacitating = | M13: 0.196 | Q13: =SUM(M11:M13,Q11:Q12) -> 1
C15: Year | D15: AADT | E15: Annual Number of Crashes | K15: Annual Cost
E16: Site Specific (Npredicted / expected) | F16: Fatality | G16: Incap. | H16: Non-Inc. | I16: Possible Injury | J16: PDO | K16: Fatality | L16: Incap. | M16: Non-Inc. | N16: Possible Injury | O16: PDO | P16: Total Cost | Q16: Present Value
C17: =F10 -> 0 | D17: =D11 -> 0 | F17: =E17*$M$11 -> 0 | G17: =E17*$M$12 -> 0 | H17: =E17*$M$13 -> 0 | I17: =E17*$Q$11 -> 0 | J17: =E17*$Q$12 -> 0 | K17: =F17*Data!$B$2 -> 0 | L17: =G17*Data!$B$3 -> 0 | M17: =H17*Data!$B$4 -> 0 | N17: =I17*Data!$B$5 -> 0 | O17: =J17*Data!$B$6 -> 0 | P17: =SUM(K17:O17) -> 0 | Q17: =(P17)/((1+$F$11)^(B17)) -> 0
C18: =C17+1 -> 1 | D18: =D17*(1+$D$10) -> 0 | F18: 0 | G18: 0 | H18: 0 | I18: 0 | J18: 0 | K18: =F18*Data!$B$2 -> 0 | L18: =G18*Data!$B$3 -> 0 | M18: =H18*Data!$B$4 -> 0 | N18: =I18*Data!$B$5 -> 0 | O18: =J18*Data!$B$6 -> 0 | P18: =SUM(K18:O18) -> 0 | Q18: 0
C19: =C18+1 -> 2 | D19: 0 | F19: 0 | G19: 0 | H19: 0 | I19: 0 | J19: 0 | K19: =F19*Data!$B$2 -> 0 | L19: =G19*Data!$B$3 -> 0 | M19: =H19*Data!$B$4 -> 0 | N19: =I19*Data!$B$5 -> 0 | O19: =J19*Data!$B$6 -> 0 | P19: 0 | Q19: 0
C20: 3 | D20: 0 | F20: 0 | G20: 0 | H20: 0 | I20: 0 | J20: 0 | K20: =F20*Data!$B$2 -> 0 | L20: =G20*Data!$B$3 -> 0 | M20: =H20*Data!$B$4 -> 0 | N20: =I20*Data!$B$5 -> 0 | O20: =J20*Data!$B$6 -> 0 | P20: 0 | Q20: 0
C21: 4 | D21: 0 | F21: 0 | G21: 0 | H21: 0 | I21: 0 | J21: 0 | K21: =F21*Data!$B$2 -> 0 | L21: =G21*Data!$B$3 -> 0 | M21: =H21*Data!$B$4 -> 0 | N21: =I21*Data!$B$5 -> 0 | O21: =J21*Data!$B$6 -> 0 | P21: 0 | Q21: 0
C22: 5 | D22: 0 | F22: 0 | G22: 0 | H22: 0 | I22: 0 | J22: 0 | K22: =F22*Data!$B$2 -> 0 | L22: =G22*Data!$B$3 -> 0 | M22: =H22*Data!$B$4 -> 0 | N22: =I22*Data!$B$5 -> 0 | O22: =J22*Data!$B$6 -> 0 | P22: 0 | Q22: 0
C23: 6 | D23: 0 | F23: 0 | G23: 0 | H23: 0 | I23: 0 | J23: 0 | K23: =F23*Data!$B$2 -> 0 | L23: =G23*Data!$B$3 -> 0 | M23: =H23*Data!$B$4 -> 0 | N23: =I23*Data!$B$5 -> 0 | O23: =J23*Data!$B$6 -> 0 | P23: 0 | Q23: 0
C24: 7 | D24: 0 | F24: 0 | G24: 0 | H24: 0 | I24: 0 | J24: 0 | K24: =F24*Data!$B$2 -> 0 | L24: =G24*Data!$B$3 -> 0 | M24: =H24*Data!$B$4 -> 0 | N24: =I24*Data!$B$5 -> 0 | O24: =J24*Data!$B$6 -> 0 | P24: 0 | Q24: 0
C25: 8 | D25: 0 | F25: 0 | G25: 0 | H25: 0 | I25: 0 | J25: 0 | K25: =F25*Data!$B$2 -> 0 | L25: =G25*Data!$B$3 -> 0 | M25: =H25*Data!$B$4 -> 0 | N25: =I25*Data!$B$5 -> 0 | O25: =J25*Data!$B$6 -> 0 | P25: 0 | Q25: 0
C26: 9 | D26: 0 | F26: 0 | G26: 0 | H26: 0 | I26: 0 | J26: 0 | K26: =F26*Data!$B$2 -> 0 | L26: =G26*Data!$B$3 -> 0 | M26: =H26*Data!$B$4 -> 0 | N26: =I26*Data!$B$5 -> 0 | O26: =J26*Data!$B$6 -> 0 | P26: 0 | Q26: 0
C27: 10 | D27: 0 | F27: 0 | G27: =E27*$M$12 -> 0 | H27: 0 | I27: 0 | J27: 0 | K27: =F27*Data!$B$2 -> 0 | L27: =G27*Data!$B$3 -> 0 | M27: =H27*Data!$B$4 -> 0 | N27: =I27*Data!$B$5 -> 0 | O27: =J27*Data!$B$6 -> 0 | P27: 0 | Q27: 0
C28: 11 | D28: 0 | F28: 0 | G28: =E28*$M$12 -> 0 | H28: 0 | I28: 0 | J28: 0 | K28: =F28*Data!$B$2 -> 0 | L28: =G28*Data!$B$3 -> 0 | M28: =H28*Data!$B$4 -> 0 | N28: =I28*Data!$B$5 -> 0 | O28: =J28*Data!$B$6 -> 0 | P28: 0 | Q28: 0
C29: 12 | D29: 0 | F29: 0 | G29: 0 | H29: 0 | I29: 0 | J29: 0 | K29: =F29*Data!$B$2 -> 0 | L29: =G29*Data!$B$3 -> 0 | M29: =H29*Data!$B$4 -> 0 | N29: =I29*Data!$B$5 -> 0 | O29: =J29*Data!$B$6 -> 0 | P29: 0 | Q29: 0
C30: 13 | D30: 0 | F30: 0 | G30: 0 | H30: 0 | I30: 0 | J30: 0 | K30: =F30*Data!$B$2 -> 0 | L30: =G30*Data!$B$3 -> 0 | M30: =H30*Data!$B$4 -> 0 | N30: =I30*Data!$B$5 -> 0 | O30: =J30*Data!$B$6 -> 0 | P30: 0 | Q30: 0
C31: 14 | D31: 0 | F31: 0 | G31: 0 | H31: 0 | I31: 0 | J31: 0 | K31: =F31*Data!$B$2 -> 0 | L31: =G31*Data!$B$3 -> 0 | M31: =H31*Data!$B$4 -> 0 | N31: =I31*Data!$B$5 -> 0 | O31: =J31*Data!$B$6 -> 0 | P31: 0 | Q31: 0
C32: 15 | D32: 0 | F32: 0 | G32: 0 | H32: 0 | I32: 0 | J32: 0 | K32: =F32*Data!$B$2 -> 0 | L32: =G32*Data!$B$3 -> 0 | M32: =H32*Data!$B$4 -> 0 | N32: =I32*Data!$B$5 -> 0 | O32: =J32*Data!$B$6 -> 0 | P32: 0 | Q32: 0
C33: 16 | D33: 0 | F33: 0 | G33: 0 | H33: 0 | I33: 0 | J33: 0 | K33: =F33*Data!$B$2 -> 0 | L33: =G33*Data!$B$3 -> 0 | M33: =H33*Data!$B$4 -> 0 | N33: =I33*Data!$B$5 -> 0 | O33: =J33*Data!$B$6 -> 0 | P33: 0 | Q33: 0
C34: 17 | D34: 0 | F34: 0 | G34: 0 | H34: 0 | I34: 0 | J34: 0 | K34: =F34*Data!$B$2 -> 0 | L34: =G34*Data!$B$3 -> 0 | M34: =H34*Data!$B$4 -> 0 | N34: =I34*Data!$B$5 -> 0 | O34: =J34*Data!$B$6 -> 0 | P34: 0 | Q34: 0
C35: 18 | D35: 0 | F35: 0 | G35: 0 | H35: 0 | I35: 0 | J35: 0 | K35: =F35*Data!$B$2 -> 0 | L35: =G35*Data!$B$3 -> 0 | M35: =H35*Data!$B$4 -> 0 | N35: =I35*Data!$B$5 -> 0 | O35: =J35*Data!$B$6 -> 0 | P35: 0 | Q35: 0
C36: 19 | D36: 0 | F36: 0 | G36: 0 | H36: 0 | I36: 0 | J36: 0 | K36: =F36*Data!$B$2 -> 0 | L36: =G36*Data!$B$3 -> 0 | M36: =H36*Data!$B$4 -> 0 | N36: =I36*Data!$B$5 -> 0 | O36: =J36*Data!$B$6 -> 0 | P36: 0 | Q36: 0
C37: 20 | D37: 0 | F37: 0 | G37: 0 | H37: 0 | I37: 0 | J37: 0 | K37: =F37*Data!$B$2 -> 0 | L37: =G37*Data!$B$3 -> 0 | M37: =H37*Data!$B$4 -> 0 | N37: =I37*Data!$B$5 -> 0 | O37: =J37*Data!$B$6 -> 0 | P37: 0 | Q37: 0
C38: 21 | D38: 0 | F38: 0 | G38: 0 | H38: 0 | I38: 0 | J38: 0 | K38: =F38*Data!$B$2 -> 0 | L38: =G38*Data!$B$3 -> 0 | M38: =H38*Data!$B$4 -> 0 | N38: =I38*Data!$B$5 -> 0 | O38: =J38*Data!$B$6 -> 0 | P38: 0 | Q38: 0
C39: 22 | D39: 0 | F39: 0 | G39: 0 | H39: 0 | I39: 0 | J39: 0 | K39: =F39*Data!$B$2 -> 0 | L39: =G39*Data!$B$3 -> 0 | M39: =H39*Data!$B$4 -> 0 | N39: =I39*Data!$B$5 -> 0 | O39: =J39*Data!$B$6 -> 0 | P39: 0 | Q39: 0
C40: 23 | D40: 0 | F40: 0 | G40: 0 | H40: 0 | I40: 0 | J40: 0 | K40: =F40*Data!$B$2 -> 0 | L40: =G40*Data!$B$3 -> 0 | M40: =H40*Data!$B$4 -> 0 | N40: =I40*Data!$B$5 -> 0 | O40: =J40*Data!$B$6 -> 0 | P40: 0 | Q40: 0
C41: 24 | D41: 0 | F41: 0 | G41: 0 | H41: 0 | I41: 0 | J41: 0 | K41: =F41*Data!$B$2 -> 0 | L41: =G41*Data!$B$3 -> 0 | M41: =H41*Data!$B$4 -> 0 | N41: =I41*Data!$B$5 -> 0 | O41: =J41*Data!$B$6 -> 0 | P41: 0 | Q41: 0
C42: 25 | D42: 0 | F42: 0 | G42: 0 | H42: 0 | I42: 0 | J42: 0 | K42: =F42*Data!$B$2 -> 0 | L42: =G42*Data!$B$3 -> 0 | M42: =H42*Data!$B$4 -> 0 | N42: =I42*Data!$B$5 -> 0 | O42: =J42*Data!$B$6 -> 0 | P42: 0 | Q42: 0
C43: 26 | D43: 0 | F43: 0 | G43: 0 | H43: 0 | I43: 0 | J43: 0 | K43: =F43*Data!$B$2 -> 0 | L43: =G43*Data!$B$3 -> 0 | M43: =H43*Data!$B$4 -> 0 | N43: =I43*Data!$B$5 -> 0 | O43: =J43*Data!$B$6 -> 0 | P43: 0 | Q43: 0
C44: Shaded cell indicates the AADT is outside the limits | P44: Total Present Value | Q44: =SUM(Q17:Q43) -> 0
C47: NOTES:
C48: 1. Present Value = Future Cash Flow / (1 + Required Rate of Return)Number of Years You Have To Wait For The Cash Flow
C49: 2. Traffic Growth Rate = [((ADTf / ADTi)(1/(F-I))-1] x 100
C50: where ADTf = Average Daily Traffic for Future Year
C51: ADTi = Average Daily Traffic for Initial Year
C52: I = Initial Year for ADT
C53: F = Future Year for ADT

Sheet Segment Summary Costs
B2: SUMMARY OF TOTAL PRESENT VALUE FOR SEGMENTS
B3: Segment Site | C3: Beginning Year | F3: End Year | I3: Total Present Value
C4: Year | D4: AADT | E4: Npredicted-rs | F4: Year | G4: AADT | H4: Npredicted-rs
B5: Segment1 | C5: ='Segment1 Crash Cost'!C19 -> 2 | D5: ='Segment1 Crash Cost'!D19 -> 0 | E5: ='Segment1 Crash Cost'!E19 -> 0 | F5: ='Segment1 Crash Cost'!C28 -> 11 | G5: ='Segment1 Crash Cost'!D28 -> 0 | H5: ='Segment1 Crash Cost'!E28 -> 0 | I5: ='Segment1 Crash Cost'!$Q$44 -> 0
B6: Segment2 | C6: ='Segment2 Crash Cost'!C18 -> 1 | D6: ='Segment2 Crash Cost'!D18 -> 0 | E6: ='Segment2 Crash Cost'!E18 -> 0 | F6: ='Segment2 Crash Cost'!C25 -> 8 | G6: ='Segment2 Crash Cost'!D25 -> 0 | H6: ='Segment2 Crash Cost'!E25 -> 0 | I6: ='Segment2 Crash Cost'!$Q$44 -> 0
B9: COMBINED | I9: =SUM(I5:I8) -> 0

Sheet Intersection1 Crash Cost
B2: State of Florida Department of Transportation
B3: Present Worth Analysis
B4: Rural Two Lane Road
B5: =IF(A_Type="P","Build Alternative","No-Build Alternative") -> Build Alternative
B6: General Information | L6: Site Information
B7: Analyst: | F7: Date: | L7: Location ID: | P7: County:
B8: Agency or Company: | L8: City: | P8: M.P. - M.P.
B9: Manual Input from Analysis
C10: Major Growth Rate = | F10: Current Year = | G10: =INDIRECT("'" & IntxName & "'!J7") -> 0 | I10: Project Opening Year = | L10: Default Distribution for Crash Severity Level (2010-2014 Florida HSM Crash Distribution)
C11: Minor Growth Rate = | F11: Rate of Return = | I11: Analysis Period = | M11: Fatality = | N11: 0.032 | Q11: Possible Injury = | R11: 0.195
C12: Current Year Major AADT = | D12: =INDIRECT("'" & IntxName & "'!majAADT") -> 0 | F12: Intersection = | G12: Intersection1 | I12: P | M12: Incapacitating = | N12: 0.116 | Q12: Property Damage Only = | R12: 0.461
C13: Current Year Minor AADT = | D13: =INDIRECT("'" & IntxName & "'!minAADT") -> 0 | F13: Crash Data Used = | G13: No | I13: 10 | M13: Non-Incapacitating = | N13: 0.196 | R13: =SUM(N11:N13,R11:R12) -> 1
C15: Year | D15: Major AADT | E15: Minor AADT | F15: Annual Number of Crashes | L15: Annual Cost
F16: Site Specific (Npredicted / expected) | G16: Fatality | H16: Incap. | I16: Non-Inc. | J16: Possible Injury | K16: PDO | L16: Fatality | M16: Incap. | N16: Non-Inc. | O16: Possible Injury | P16: PDO | Q16: Total Cost | R16: Present Value
C17: =G10 -> 0 | D17: =D12 -> 0 | E17: =D13 -> 0 | G17: =F17*$N$11 -> 0 | H17: =F17*$N$12 -> 0 | I17: =F17*$N$13 -> 0 | J17: =F17*$R$11 -> 0 | K17: =F17*$R$12 -> 0 | L17: =G17*Data!$B$2 -> 0 | M17: =H17*Data!$B$3 -> 0 | N17: =I17*Data!$B$4 -> 0 | O17: =J17*Data!$B$5 -> 0 | P17: =K17*Data!$B$6 -> 0 | Q17: =SUM(L17:P17) -> 0 | R17: =(Q17)/((1+$G$11)^(B17)) -> 0
C18: =C17+1 -> 1 | D18: =D17*(1+$D$10) -> 0 | E18: =E17*(1+$D$11) -> 0 | G18: 0 | H18: 0 | I18: 0 | J18: 0 | K18: 0 | L18: =G18*Data!$B$2 -> 0 | M18: =H18*Data!$B$3 -> 0 | N18: =I18*Data!$B$4 -> 0 | O18: =J18*Data!$B$5 -> 0 | P18: =K18*Data!$B$6 -> 0 | Q18: =SUM(L18:P18) -> 0 | R18: 0
C19: =C18+1 -> 2 | D19: =D18*(1+$D$10) -> 0 | E19: =E18*(1+$D$11) -> 0 | G19: 0 | H19: 0 | I19: 0 | J19: 0 | K19: 0 | L19: =G19*Data!$B$2 -> 0 | M19: =H19*Data!$B$3 -> 0 | N19: =I19*Data!$B$4 -> 0 | O19: =J19*Data!$B$5 -> 0 | P19: =K19*Data!$B$6 -> 0 | Q19: 0 | R19: 0
C20: 3 | D20: 0 | E20: 0 | G20: 0 | H20: 0 | I20: 0 | J20: 0 | K20: 0 | L20: =G20*Data!$B$2 -> 0 | M20: =H20*Data!$B$3 -> 0 | N20: =I20*Data!$B$4 -> 0 | O20: =J20*Data!$B$5 -> 0 | P20: =K20*Data!$B$6 -> 0 | Q20: 0 | R20: 0
C21: 4 | D21: 0 | E21: 0 | G21: 0 | H21: 0 | I21: 0 | J21: 0 | K21: 0 | L21: =G21*Data!$B$2 -> 0 | M21: =H21*Data!$B$3 -> 0 | N21: =I21*Data!$B$4 -> 0 | O21: =J21*Data!$B$5 -> 0 | P21: =K21*Data!$B$6 -> 0 | Q21: 0 | R21: 0
C22: 5 | D22: 0 | E22: 0 | G22: 0 | H22: 0 | I22: 0 | J22: 0 | K22: 0 | L22: =G22*Data!$B$2 -> 0 | M22: =H22*Data!$B$3 -> 0 | N22: =I22*Data!$B$4 -> 0 | O22: =J22*Data!$B$5 -> 0 | P22: =K22*Data!$B$6 -> 0 | Q22: 0 | R22: 0
C23: 6 | D23: 0 | E23: 0 | G23: 0 | H23: 0 | I23: 0 | J23: 0 | K23: 0 | L23: =G23*Data!$B$2 -> 0 | M23: =H23*Data!$B$3 -> 0 | N23: =I23*Data!$B$4 -> 0 | O23: =J23*Data!$B$5 -> 0 | P23: =K23*Data!$B$6 -> 0 | Q23: 0 | R23: 0
C24: 7 | D24: 0 | E24: 0 | G24: 0 | H24: 0 | I24: 0 | J24: 0 | K24: 0 | L24: =G24*Data!$B$2 -> 0 | M24: =H24*Data!$B$3 -> 0 | N24: =I24*Data!$B$4 -> 0 | O24: =J24*Data!$B$5 -> 0 | P24: =K24*Data!$B$6 -> 0 | Q24: 0 | R24: 0
C25: 8 | D25: 0 | E25: 0 | G25: =F25*$N$11 -> 0 | H25: =F25*$N$12 -> 0 | I25: =F25*$N$13 -> 0 | J25: =F25*$R$11 -> 0 | K25: =F25*$R$12 -> 0 | L25: =G25*Data!$B$2 -> 0 | M25: =H25*Data!$B$3 -> 0 | N25: =I25*Data!$B$4 -> 0 | O25: =J25*Data!$B$5 -> 0 | P25: =K25*Data!$B$6 -> 0 | Q25: 0 | R25: 0
C26: 9 | D26: 0 | E26: 0 | G26: =F26*$N$11 -> 0 | H26: =F26*$N$12 -> 0 | I26: =F26*$N$13 -> 0 | J26: =F26*$R$11 -> 0 | K26: =F26*$R$12 -> 0 | L26: =G26*Data!$B$2 -> 0 | M26: =H26*Data!$B$3 -> 0 | N26: =I26*Data!$B$4 -> 0 | O26: =J26*Data!$B$5 -> 0 | P26: =K26*Data!$B$6 -> 0 | Q26: =SUM(L26:P26) -> 0 | R26: =(Q26)/((1+$G$11)^(B26)) -> 0
C27: 10 | D27: 0 | E27: 0 | G27: 0 | H27: 0 | I27: 0 | J27: 0 | K27: 0 | L27: =G27*Data!$B$2 -> 0 | M27: =H27*Data!$B$3 -> 0 | N27: =I27*Data!$B$4 -> 0 | O27: =J27*Data!$B$5 -> 0 | P27: =K27*Data!$B$6 -> 0 | Q27: 0 | R27: 0
C28: 11 | D28: 0 | E28: 0 | G28: 0 | H28: 0 | I28: 0 | J28: 0 | K28: 0 | L28: =G28*Data!$B$2 -> 0 | M28: =H28*Data!$B$3 -> 0 | N28: =I28*Data!$B$4 -> 0 | O28: =J28*Data!$B$5 -> 0 | P28: =K28*Data!$B$6 -> 0 | Q28: 0 | R28: 0
C29: 12 | D29: 0 | E29: 0 | G29: 0 | H29: 0 | I29: 0 | J29: 0 | K29: 0 | L29: =G29*Data!$B$2 -> 0 | M29: =H29*Data!$B$3 -> 0 | N29: =I29*Data!$B$4 -> 0 | O29: =J29*Data!$B$5 -> 0 | P29: =K29*Data!$B$6 -> 0 | Q29: 0 | R29: 0
C30: 13 | D30: 0 | E30: 0 | G30: 0 | H30: 0 | I30: 0 | J30: 0 | K30: 0 | L30: =G30*Data!$B$2 -> 0 | M30: =H30*Data!$B$3 -> 0 | N30: =I30*Data!$B$4 -> 0 | O30: =J30*Data!$B$5 -> 0 | P30: =K30*Data!$B$6 -> 0 | Q30: 0 | R30: 0
C31: 14 | D31: 0 | E31: 0 | G31: 0 | H31: 0 | I31: 0 | J31: 0 | K31: 0 | L31: =G31*Data!$B$2 -> 0 | M31: =H31*Data!$B$3 -> 0 | N31: =I31*Data!$B$4 -> 0 | O31: =J31*Data!$B$5 -> 0 | P31: =K31*Data!$B$6 -> 0 | Q31: 0 | R31: 0
C32: 15 | D32: 0 | E32: 0 | G32: 0 | H32: 0 | I32: 0 | J32: 0 | K32: 0 | L32: =G32*Data!$B$2 -> 0 | M32: =H32*Data!$B$3 -> 0 | N32: =I32*Data!$B$4 -> 0 | O32: =J32*Data!$B$5 -> 0 | P32: =K32*Data!$B$6 -> 0 | Q32: 0 | R32: 0
C33: 16 | D33: 0 | E33: 0 | G33: 0 | H33: 0 | I33: 0 | J33: 0 | K33: 0 | L33: =G33*Data!$B$2 -> 0 | M33: =H33*Data!$B$3 -> 0 | N33: =I33*Data!$B$4 -> 0 | O33: =J33*Data!$B$5 -> 0 | P33: =K33*Data!$B$6 -> 0 | Q33: 0 | R33: 0
C34: 17 | D34: 0 | E34: 0 | G34: 0 | H34: 0 | I34: 0 | J34: 0 | K34: 0 | L34: =G34*Data!$B$2 -> 0 | M34: =H34*Data!$B$3 -> 0 | N34: =I34*Data!$B$4 -> 0 | O34: =J34*Data!$B$5 -> 0 | P34: =K34*Data!$B$6 -> 0 | Q34: 0 | R34: 0
C35: 18 | D35: 0 | E35: 0 | G35: 0 | H35: 0 | I35: 0 | J35: 0 | K35: 0 | L35: =G35*Data!$B$2 -> 0 | M35: =H35*Data!$B$3 -> 0 | N35: =I35*Data!$B$4 -> 0 | O35: =J35*Data!$B$5 -> 0 | P35: =K35*Data!$B$6 -> 0 | Q35: 0 | R35: 0
C36: 19 | D36: 0 | E36: 0 | G36: 0 | H36: 0 | I36: 0 | J36: 0 | K36: 0 | L36: =G36*Data!$B$2 -> 0 | M36: =H36*Data!$B$3 -> 0 | N36: =I36*Data!$B$4 -> 0 | O36: =J36*Data!$B$5 -> 0 | P36: =K36*Data!$B$6 -> 0 | Q36: 0 | R36: 0
C37: 20 | D37: 0 | E37: 0 | G37: 0 | H37: 0 | I37: 0 | J37: 0 | K37: 0 | L37: =G37*Data!$B$2 -> 0 | M37: =H37*Data!$B$3 -> 0 | N37: =I37*Data!$B$4 -> 0 | O37: =J37*Data!$B$5 -> 0 | P37: =K37*Data!$B$6 -> 0 | Q37: 0 | R37: 0
C38: 21 | D38: 0 | E38: 0 | G38: 0 | H38: 0 | I38: 0 | J38: 0 | K38: 0 | L38: =G38*Data!$B$2 -> 0 | M38: =H38*Data!$B$3 -> 0 | N38: =I38*Data!$B$4 -> 0 | O38: =J38*Data!$B$5 -> 0 | P38: =K38*Data!$B$6 -> 0 | Q38: 0 | R38: 0
C39: 22 | D39: 0 | E39: 0 | G39: 0 | H39: 0 | I39: 0 | J39: 0 | K39: 0 | L39: =G39*Data!$B$2 -> 0 | M39: =H39*Data!$B$3 -> 0 | N39: =I39*Data!$B$4 -> 0 | O39: =J39*Data!$B$5 -> 0 | P39: =K39*Data!$B$6 -> 0 | Q39: 0 | R39: 0
C40: 23 | D40: 0 | E40: 0 | G40: 0 | H40: 0 | I40: 0 | J40: 0 | K40: 0 | L40: =G40*Data!$B$2 -> 0 | M40: =H40*Data!$B$3 -> 0 | N40: =I40*Data!$B$4 -> 0 | O40: =J40*Data!$B$5 -> 0 | P40: =K40*Data!$B$6 -> 0 | Q40: 0 | R40: 0
C41: 24 | D41: 0 | E41: 0 | G41: 0 | H41: 0 | I41: 0 | J41: 0 | K41: 0 | L41: =G41*Data!$B$2 -> 0 | M41: =H41*Data!$B$3 -> 0 | N41: =I41*Data!$B$4 -> 0 | O41: =J41*Data!$B$5 -> 0 | P41: =K41*Data!$B$6 -> 0 | Q41: 0 | R41: 0
C42: 25 | D42: 0 | E42: 0 | G42: 0 | H42: 0 | I42: 0 | J42: 0 | K42: 0 | L42: =G42*Data!$B$2 -> 0 | M42: =H42*Data!$B$3 -> 0 | N42: =I42*Data!$B$4 -> 0 | O42: =J42*Data!$B$5 -> 0 | P42: =K42*Data!$B$6 -> 0 | Q42: 0 | R42: 0
C43: 26 | D43: 0 | E43: 0 | G43: 0 | H43: 0 | I43: 0 | J43: 0 | K43: 0 | L43: =G43*Data!$B$2 -> 0 | M43: =H43*Data!$B$3 -> 0 | N43: =I43*Data!$B$4 -> 0 | O43: =J43*Data!$B$5 -> 0 | P43: =K43*Data!$B$6 -> 0 | Q43: 0 | R43: 0
C44: Shaded cell indicates the AADT is outside the limits | Q44: Total Present Value | R44: =SUM(R17:R43) -> 0
C47: NOTES:
C48: 1. Present Value = Future Cash Flow / (1 + Required Rate of Return)Number of Years You Have To Wait For The Cash Flow
C49: 2. Traffic Growth Rate = [((ADTf / ADTi)(1/(F-I))-1] x 100
C50: where ADTf = Average Daily Traffic for Future Year
C51: ADTi = Average Daily Traffic for Initial Year
C52: I = Initial Year for ADT
C53: F = Future Year for ADT

Sheet Intersection2 Crash Cost
B2: State of Florida Department of Transportation
B3: Present Worth Analysis
B4: Rural Two Lane Road
B5: =IF(A_Type="P","Build Alternative","No-Build Alternative") -> No-Build Alternative
B6: General Information | L6: Site Information
B7: Analyst: | F7: Date: | L7: Location ID: | P7: County:
B8: Agency or Company: | L8: City: | P8: M.P. - M.P.
B9: Manual Input from Analysis
C10: Major Growth Rate = | F10: Current Year = | G10: =INDIRECT("'" & IntxName & "'!J7") -> 0 | I10: Project Opening Year = | L10: Default Distribution for Crash Severity Level (2010-2014 Florida HSM Crash Distribution)
C11: Minor Growth Rate = | F11: Rate of Return = | I11: Analysis Period = | M11: Fatality = | N11: 0.032 | Q11: Possible Injury = | R11: 0.195
C12: Current Year Major AADT = | D12: =INDIRECT("'" & IntxName & "'!majAADT") -> 0 | F12: Intersection = | G12: Intersection2 | I12: E | M12: Incapacitating = | N12: 0.116 | Q12: Property Damage Only = | R12: 0.461
C13: Current Year Minor AADT = | D13: =INDIRECT("'" & IntxName & "'!minAADT") -> 0 | F13: Crash Data Used = | G13: Yes | I13: 10 | M13: Non-Incapacitating = | N13: 0.196 | R13: =SUM(N11:N13,R11:R12) -> 1
C15: Year | D15: Major AADT | E15: Minor AADT | F15: Annual Number of Crashes | L15: Annual Cost
F16: Site Specific (Npredicted / expected) | G16: Fatality | H16: Incap. | I16: Non-Inc. | J16: Possible Injury | K16: PDO | L16: Fatality | M16: Incap. | N16: Non-Inc. | O16: Possible Injury | P16: PDO | Q16: Total Cost | R16: Present Value
C17: =G10 -> 0 | D17: =D12 -> 0 | E17: =D13 -> 0 | G17: =F17*$N$11 -> 0 | H17: =F17*$N$12 -> 0 | I17: =F17*$N$13 -> 0 | J17: =F17*$R$11 -> 0 | K17: =F17*$R$12 -> 0 | L17: =G17*Data!$B$2 -> 0 | M17: =H17*Data!$B$3 -> 0 | N17: =I17*Data!$B$4 -> 0 | O17: =J17*Data!$B$5 -> 0 | P17: =K17*Data!$B$6 -> 0 | Q17: =SUM(L17:P17) -> 0 | R17: =(Q17)/((1+$G$11)^(B17)) -> 0
C18: =C17+1 -> 1 | D18: =D17*(1+$D$10) -> 0 | E18: =E17*(1+$D$11) -> 0 | G18: 0 | H18: 0 | I18: 0 | J18: 0 | K18: 0 | L18: =G18*Data!$B$2 -> 0 | M18: =H18*Data!$B$3 -> 0 | N18: =I18*Data!$B$4 -> 0 | O18: =J18*Data!$B$5 -> 0 | P18: =K18*Data!$B$6 -> 0 | Q18: =SUM(L18:P18) -> 0 | R18: 0
C19: =C18+1 -> 2 | D19: =D18*(1+$D$10) -> 0 | E19: =E18*(1+$D$11) -> 0 | G19: 0 | H19: 0 | I19: 0 | J19: 0 | K19: 0 | L19: =G19*Data!$B$2 -> 0 | M19: =H19*Data!$B$3 -> 0 | N19: =I19*Data!$B$4 -> 0 | O19: =J19*Data!$B$5 -> 0 | P19: =K19*Data!$B$6 -> 0 | Q19: 0 | R19: 0
C20: 3 | D20: 0 | E20: 0 | G20: 0 | H20: 0 | I20: 0 | J20: 0 | K20: 0 | L20: =G20*Data!$B$2 -> 0 | M20: =H20*Data!$B$3 -> 0 | N20: =I20*Data!$B$4 -> 0 | O20: =J20*Data!$B$5 -> 0 | P20: =K20*Data!$B$6 -> 0 | Q20: 0 | R20: 0
C21: 4 | D21: 0 | E21: 0 | G21: 0 | H21: 0 | I21: 0 | J21: 0 | K21: 0 | L21: =G21*Data!$B$2 -> 0 | M21: =H21*Data!$B$3 -> 0 | N21: =I21*Data!$B$4 -> 0 | O21: =J21*Data!$B$5 -> 0 | P21: =K21*Data!$B$6 -> 0 | Q21: 0 | R21: 0
C22: 5 | D22: 0 | E22: 0 | G22: 0 | H22: 0 | I22: 0 | J22: 0 | K22: 0 | L22: =G22*Data!$B$2 -> 0 | M22: =H22*Data!$B$3 -> 0 | N22: =I22*Data!$B$4 -> 0 | O22: =J22*Data!$B$5 -> 0 | P22: =K22*Data!$B$6 -> 0 | Q22: 0 | R22: 0
C23: 6 | D23: 0 | E23: 0 | G23: 0 | H23: 0 | I23: 0 | J23: 0 | K23: 0 | L23: =G23*Data!$B$2 -> 0 | M23: =H23*Data!$B$3 -> 0 | N23: =I23*Data!$B$4 -> 0 | O23: =J23*Data!$B$5 -> 0 | P23: =K23*Data!$B$6 -> 0 | Q23: 0 | R23: 0
C24: 7 | D24: 0 | E24: 0 | G24: 0 | H24: 0 | I24: 0 | J24: 0 | K24: 0 | L24: =G24*Data!$B$2 -> 0 | M24: =H24*Data!$B$3 -> 0 | N24: =I24*Data!$B$4 -> 0 | O24: =J24*Data!$B$5 -> 0 | P24: =K24*Data!$B$6 -> 0 | Q24: 0 | R24: 0
C25: 8 | D25: 0 | E25: 0 | G25: 0 | H25: =F25*$N$12 -> 0 | I25: 0 | J25: 0 | K25: 0 | L25: =G25*Data!$B$2 -> 0 | M25: =H25*Data!$B$3 -> 0 | N25: =I25*Data!$B$4 -> 0 | O25: =J25*Data!$B$5 -> 0 | P25: =K25*Data!$B$6 -> 0 | Q25: 0 | R25: 0
C26: 9 | D26: 0 | E26: 0 | G26: 0 | H26: =F26*$N$12 -> 0 | I26: 0 | J26: 0 | K26: 0 | L26: =G26*Data!$B$2 -> 0 | M26: =H26*Data!$B$3 -> 0 | N26: =I26*Data!$B$4 -> 0 | O26: =J26*Data!$B$5 -> 0 | P26: =K26*Data!$B$6 -> 0 | Q26: 0 | R26: 0
C27: 10 | D27: 0 | E27: 0 | G27: 0 | H27: 0 | I27: 0 | J27: 0 | K27: 0 | L27: =G27*Data!$B$2 -> 0 | M27: =H27*Data!$B$3 -> 0 | N27: =I27*Data!$B$4 -> 0 | O27: =J27*Data!$B$5 -> 0 | P27: =K27*Data!$B$6 -> 0 | Q27: 0 | R27: 0
C28: 11 | D28: 0 | E28: 0 | G28: 0 | H28: 0 | I28: 0 | J28: 0 | K28: 0 | L28: =G28*Data!$B$2 -> 0 | M28: =H28*Data!$B$3 -> 0 | N28: =I28*Data!$B$4 -> 0 | O28: =J28*Data!$B$5 -> 0 | P28: =K28*Data!$B$6 -> 0 | Q28: 0 | R28: 0
C29: 12 | D29: 0 | E29: 0 | G29: 0 | H29: 0 | I29: 0 | J29: 0 | K29: 0 | L29: =G29*Data!$B$2 -> 0 | M29: =H29*Data!$B$3 -> 0 | N29: =I29*Data!$B$4 -> 0 | O29: =J29*Data!$B$5 -> 0 | P29: =K29*Data!$B$6 -> 0 | Q29: 0 | R29: 0
C30: 13 | D30: 0 | E30: 0 | G30: 0 | H30: 0 | I30: 0 | J30: 0 | K30: 0 | L30: =G30*Data!$B$2 -> 0 | M30: =H30*Data!$B$3 -> 0 | N30: =I30*Data!$B$4 -> 0 | O30: =J30*Data!$B$5 -> 0 | P30: =K30*Data!$B$6 -> 0 | Q30: 0 | R30: 0
C31: 14 | D31: 0 | E31: 0 | G31: 0 | H31: 0 | I31: 0 | J31: 0 | K31: 0 | L31: =G31*Data!$B$2 -> 0 | M31: =H31*Data!$B$3 -> 0 | N31: =I31*Data!$B$4 -> 0 | O31: =J31*Data!$B$5 -> 0 | P31: =K31*Data!$B$6 -> 0 | Q31: 0 | R31: 0
C32: 15 | D32: 0 | E32: 0 | G32: 0 | H32: 0 | I32: 0 | J32: 0 | K32: 0 | L32: =G32*Data!$B$2 -> 0 | M32: =H32*Data!$B$3 -> 0 | N32: =I32*Data!$B$4 -> 0 | O32: =J32*Data!$B$5 -> 0 | P32: =K32*Data!$B$6 -> 0 | Q32: 0 | R32: 0
C33: 16 | D33: 0 | E33: 0 | G33: 0 | H33: 0 | I33: 0 | J33: 0 | K33: 0 | L33: =G33*Data!$B$2 -> 0 | M33: =H33*Data!$B$3 -> 0 | N33: =I33*Data!$B$4 -> 0 | O33: =J33*Data!$B$5 -> 0 | P33: =K33*Data!$B$6 -> 0 | Q33: 0 | R33: 0
C34: 17 | D34: 0 | E34: 0 | G34: 0 | H34: 0 | I34: 0 | J34: 0 | K34: 0 | L34: =G34*Data!$B$2 -> 0 | M34: =H34*Data!$B$3 -> 0 | N34: =I34*Data!$B$4 -> 0 | O34: =J34*Data!$B$5 -> 0 | P34: =K34*Data!$B$6 -> 0 | Q34: 0 | R34: 0
C35: 18 | D35: 0 | E35: 0 | G35: 0 | H35: 0 | I35: 0 | J35: 0 | K35: 0 | L35: =G35*Data!$B$2 -> 0 | M35: =H35*Data!$B$3 -> 0 | N35: =I35*Data!$B$4 -> 0 | O35: =J35*Data!$B$5 -> 0 | P35: =K35*Data!$B$6 -> 0 | Q35: 0 | R35: 0
C36: 19 | D36: 0 | E36: 0 | G36: 0 | H36: 0 | I36: 0 | J36: 0 | K36: 0 | L36: =G36*Data!$B$2 -> 0 | M36: =H36*Data!$B$3 -> 0 | N36: =I36*Data!$B$4 -> 0 | O36: =J36*Data!$B$5 -> 0 | P36: =K36*Data!$B$6 -> 0 | Q36: 0 | R36: 0
C37: 20 | D37: 0 | E37: 0 | G37: 0 | H37: 0 | I37: 0 | J37: 0 | K37: 0 | L37: =G37*Data!$B$2 -> 0 | M37: =H37*Data!$B$3 -> 0 | N37: =I37*Data!$B$4 -> 0 | O37: =J37*Data!$B$5 -> 0 | P37: =K37*Data!$B$6 -> 0 | Q37: 0 | R37: 0
C38: 21 | D38: 0 | E38: 0 | G38: 0 | H38: 0 | I38: 0 | J38: 0 | K38: 0 | L38: =G38*Data!$B$2 -> 0 | M38: =H38*Data!$B$3 -> 0 | N38: =I38*Data!$B$4 -> 0 | O38: =J38*Data!$B$5 -> 0 | P38: =K38*Data!$B$6 -> 0 | Q38: 0 | R38: 0
C39: 22 | D39: 0 | E39: 0 | G39: 0 | H39: 0 | I39: 0 | J39: 0 | K39: 0 | L39: =G39*Data!$B$2 -> 0 | M39: =H39*Data!$B$3 -> 0 | N39: =I39*Data!$B$4 -> 0 | O39: =J39*Data!$B$5 -> 0 | P39: =K39*Data!$B$6 -> 0 | Q39: 0 | R39: 0
C40: 23 | D40: 0 | E40: 0 | G40: 0 | H40: 0 | I40: 0 | J40: 0 | K40: 0 | L40: =G40*Data!$B$2 -> 0 | M40: =H40*Data!$B$3 -> 0 | N40: =I40*Data!$B$4 -> 0 | O40: =J40*Data!$B$5 -> 0 | P40: =K40*Data!$B$6 -> 0 | Q40: 0 | R40: 0
C41: 24 | D41: 0 | E41: 0 | G41: 0 | H41: 0 | I41: 0 | J41: 0 | K41: 0 | L41: =G41*Data!$B$2 -> 0 | M41: =H41*Data!$B$3 -> 0 | N41: =I41*Data!$B$4 -> 0 | O41: =J41*Data!$B$5 -> 0 | P41: =K41*Data!$B$6 -> 0 | Q41: 0 | R41: 0
C42: 25 | D42: 0 | E42: 0 | G42: 0 | H42: 0 | I42: 0 | J42: 0 | K42: 0 | L42: =G42*Data!$B$2 -> 0 | M42: =H42*Data!$B$3 -> 0 | N42: =I42*Data!$B$4 -> 0 | O42: =J42*Data!$B$5 -> 0 | P42: =K42*Data!$B$6 -> 0 | Q42: 0 | R42: 0
C43: 26 | D43: 0 | E43: 0 | G43: 0 | H43: 0 | I43: 0 | J43: 0 | K43: 0 | L43: =G43*Data!$B$2 -> 0 | M43: =H43*Data!$B$3 -> 0 | N43: =I43*Data!$B$4 -> 0 | O43: =J43*Data!$B$5 -> 0 | P43: =K43*Data!$B$6 -> 0 | Q43: 0 | R43: 0
C44: Shaded cell indicates the AADT is outside the limits | Q44: Total Present Value | R44: =SUM(R17:R43) -> 0
C47: NOTES:
C48: 1. Present Value = Future Cash Flow / (1 + Required Rate of Return)Number of Years You Have To Wait For The Cash Flow
C49: 2. Traffic Growth Rate = [((ADTf / ADTi)(1/(F-I))-1] x 100
C50: where ADTf = Average Daily Traffic for Future Year
C51: ADTi = Average Daily Traffic for Initial Year
C52: I = Initial Year for ADT
C53: F = Future Year for ADT

Sheet Intersection Summary Costs
B2: SUMMARY OF TOTAL PRESENT VALUE FOR INTERSECTIONS
B3: Intersection Site | C3: Beginning Year | G3: End Year | K3: Total Present Value
C4: Year | D4: Major AADT | E4: Minor AADT | F4: Npredicted-rs | G4: Year | H4: Major AADT | I4: Minor AADT | J4: Npredicted-rs
B5: Intersection1 | C5: ='Intersection1 Crash Cost'!C22 -> 5 | D5: ='Intersection1 Crash Cost'!D22 -> 0 | E5: ='Intersection1 Crash Cost'!E22 -> 0 | F5: ='Intersection1 Crash Cost'!F22 -> 0 | G5: ='Intersection1 Crash Cost'!C30 -> 13 | H5: ='Intersection1 Crash Cost'!D30 -> 0 | I5: ='Intersection1 Crash Cost'!E30 -> 0 | J5: ='Intersection1 Crash Cost'!F30 -> 0 | K5: ='Intersection1 Crash Cost'!$R$44 -> 0
B6: Intersection2 | C6: ='Intersection2 Crash Cost'!C18 -> 1 | D6: ='Intersection2 Crash Cost'!D18 -> 0 | E6: ='Intersection2 Crash Cost'!E18 -> 0 | F6: ='Intersection2 Crash Cost'!F18 -> 0 | G6: ='Intersection2 Crash Cost'!C32 -> 15 | H6: ='Intersection2 Crash Cost'!D32 -> 0 | I6: ='Intersection2 Crash Cost'!E32 -> 0 | J6: ='Intersection2 Crash Cost'!F32 -> 0 | K6: ='Intersection2 Crash Cost'!$R$44 -> 0
B9: COMBINED | K9: =SUM(K5:K8) -> 0

Sheet Data
B1: Cost of Crashes | D1: 2U | E1: 4U | F1: 4D
A2: Fatal (K) | B2: 10230000 | D2: 0.032 | E2: 0.029 | F2: 0.03
A3: Severe Injury (A) | B3: 580320 | D3: 0.116 | E3: 0.111 | F3: 0.112
A4: Moderate Injury (B) | B4: 157170 | D4: 0.196 | E4: 0.182 | F4: 0.206
A5: Minor Injury C | B5: 97650 | D5: 0.196 | E5: 0.219 | F5: 0.197
A6: PDO | B6: 7600 | D6: 0.461 | E6: 0.46 | F6: 0.453
